{"text_format":"2","workbook":"xlsx","n_sheets":9,"sheets":["QUADRO RESUMO","APOIO ESPECIALI - Módulos 1 a 6","APOIO À GESTÃO - Módulos 1 a 6","SERVIÇOS GERAIS - Módulos 1 a 6","COPEIRA - Módulos 1 a 6","MOTORISTA - Módulos 1 a 6","MOTORISTA - DIÁRIAS - Módulo 7","RECEPCIONISTA - Módulos 1 a 6","INSUMOS - Módulo 5"],"not_rendered":{"charts":0,"images":1,"macros":0,"external_links":0,"defined_names":0,"comments":0,"pivot_tables":0},"unopened":[],"bounds":{"document_bytes":16777216,"sheet_cells":100000,"run_cost":"one","rows_first":2000,"rows_last":500,"rows_between":2000,"halvings":0,"cell_chars":16384,"cell_head_chars":4096},"cells_cut":0,"cells_raw":0,"read":"whole","date_system":"1900"}

{"sheet":"QUADRO RESUMO","index":0,"n_rows":12,"n_cols":12,"rows_kept":12,"cut":false,"hidden":false,"merged":[[5,1,10,1],[3,1,3,11],[11,1,11,3],[1,1,1,11]]}
[]
[null,"PLANILHA DE CUSTOS E FORMAÇÃO DE PREÇOS"]
[]
[null,"QUADRO RESUMO"]
[null,"Grupo","Item","Posto de Trabalho / Função","Remuneração \n(CCT)","Módulo mínimo de contratação","Módulo máximo de contratação","Custo unitário mensal do item","Custo mensal da contratação mínima","Custo anual da contratação mínima","Custo mensal da contratação máxima","Custo anual da contratação máxima"]
[null,1,1,"Apoio administrativo especializado",{"$f":"'APOIO ESPECIALI - Módulos 1 a 6'!D19","v":0},3,6,{"$f":"'APOIO ESPECIALI - Módulos 1 a 6'!D121","v":0},{"$f":"H6*F6","v":0},{"$f":"I6*12","v":0},{"$f":"G6*H6","v":0},{"$f":"K6*12","v":0}]
[null,null,2,"Assistente de apoio à gestão",{"$f":"'APOIO À GESTÃO - Módulos 1 a 6'!D24","v":0},3,6,{"$f":"'APOIO À GESTÃO - Módulos 1 a 6'!D120","v":0},{"$f":"H7*F7","v":0},{"$f":"I7*12","v":0},{"$f":"G7*H7","v":0},{"$f":"K7*12","v":0}]
[null,null,3,"Auxiliar de serviços gerais ",{"$f":"'SERVIÇOS GERAIS - Módulos 1 a 6'!D19","v":0},1,2,{"$f":"'SERVIÇOS GERAIS - Módulos 1 a 6'!D121","v":0},0,0,0,0]
[null,null,4,"Copeira ",{"$f":"'COPEIRA - Módulos 1 a 6'!D19","v":0},1,2,{"$f":"'COPEIRA - Módulos 1 a 6'!D121","v":0},0,0,0,0]
[null,null,5,"Motorista",{"$f":"'MOTORISTA - Módulos 1 a 6'!D18","v":0},2,4,{"$f":"'MOTORISTA - Módulos 1 a 6'!D122","v":0},0,0,0,0]
[null,null,6,"Recepcionista  ",{"$f":"'RECEPCIONISTA - Módulos 1 a 6'!D18","v":0},1,2,{"$f":"'RECEPCIONISTA - Módulos 1 a 6'!D120","v":0},0,0,0,0]
[null,"Total ",null,null,null,{"$f":"SUM(F6:F11)","v":11},{"$f":"SUM(G6:G11)","v":22},null,{"$f":"SUM(I6:I11)","v":0},{"$f":"SUM(J6:J11)","v":0},{"$f":"SUM(K6:K11)","v":0},{"$f":"SUM(L6:L11)","v":0}]

{"sheet":"APOIO ESPECIALI - Módulos 1 a 6","index":1,"n_rows":121,"n_cols":4,"rows_kept":121,"cut":false,"hidden":false,"merged":[[120,0,120,2],[102,1,102,2],[104,1,104,2],[109,0,109,2],[111,0,111,3],[112,0,112,1],[118,0,118,2],[99,0,99,3],[76,0,76,2],[77,0,77,1],[78,0,78,1],[79,0,79,1],[80,0,80,1],[81,0,81,1],[82,0,82,1],[84,0,84,1],[91,0,91,1],[93,0,93,3],[97,0,97,1],[75,0,75,3],[49,0,49,3],[50,0,50,1],[56,0,56,1],[57,0,57,3],[58,0,58,1],[59,0,59,1],[63,0,63,1],[64,0,64,3],[65,0,65,1],[73,0,73,1],[74,0,74,3],[48,0,48,1],[12,0,12,2],[14,0,14,3],[21,0,21,3],[22,0,22,3],[31,0,31,1],[32,0,32,3],[33,0,33,3],[34,0,34,1],[37,0,37,1],[38,0,38,3],[39,0,39,1],[11,0,11,2],[0,0,0,3],[1,0,1,3],[2,0,2,3],[3,0,3,3],[4,0,4,2],[5,0,5,2],[6,0,6,2],[7,0,7,2],[8,0,8,2],[9,0,9,2],[10,0,10,2]]}
["MÓDULOS 1 A 6 (CUSTOS FIXOS)"]
["Planilha de Custos e Formação de Preços "]
["Assistente de apoio à gestão"]
["Discriminação dos Serviços"]
["Data de apresentação da proposta",null,null,"Licitante Preencher"]
["Município",null,null,"Fortaleza - CE"]
["Ano do Acordo, Convenção ou Dissídio Coletivo",null,null,"CE000086/2025"]
["Tipo de Serviço",null,null,"Apoio especializado"]
["Unidade de Medida",null,null,"Posto"]
["Quantidade máxima passível de contratação em função da unidade de medida",null,null,{"$f":"'QUADRO RESUMO'!G6","v":6}]
["Nº de meses de execução contratual",null,null,12]
["Regime Tributário da Empresa",null,null,"Licitante Preencher"]
["Se Optante pelo Simples Nacional, preencher o faturamento acumulado dos últimos 12 meses ",null,null,"Licitante Preencher"]
[]
["Dados complementares para composição dos custos referente à mão-de-obra"]
[1,"Tipo de serviço",null,"Apoio especializado"]
[2,"Classificação Brasileira de Ocupações (CBO)",null,"2523-05"]
[3,"Salário Nominativo da Categoria Profissional – 6h/dia – 30h semanais (Cláusula 3ª – 23ª Faixa)"]
[4,"Salário Nominativo da Categoria Profissional – 8h/dia – 40h semanais (proporcional)",null,{"$f":"D18/30*40","v":0}]
[5,"Categoria profissional (vinculada à execução contratual)",null,"APOIO ADMINISTRATIVO ESPECIALIZADO"]
[6,"Data base da categoria (dia/mês/ano)",null,"2025-01-01"]
[]
["MÓDULO 1 - COMPOSIÇÃO DA REMUNERAÇÃO"]
[1,"COMPOSIÇÃO DA REMUNERAÇÃO","%","VALOR (R$)"]
["A","Salário Base (Cláusula 3ª)",null,{"$f":"D19","v":0}]
["B","Adicional Periculosidade ",0.3,0]
["C","Adicional Insalubridade","20%~40%",0]
["D","Adicional Noturno",0.2,0]
["E","Adicional de Hora Noturna Reduzida",null,0]
["F","Adicional de Hora Extra no Feriado Trabalhado",null,0]
["G","Outros (especificar)",null,0]
["TOTAL DO MÓDULO 1",null,null,{"$f":"TRUNC(SUM(D25:D31),2)","v":0}]
[]
["MÓDULO 2 – ENCARGOS E BENEFÍCIOS ANUAIS, MENSAIS E DIÁRIOS"]
["Submódulo 2.1 - 13º Salário, Férias e Adicional de Férias",null,"%","VALOR (R$)"]
["A","13 (Décimo-terceiro) salário \n(Valor referente a 1/12 x Remuneração.)",8.3299999999999999E-2,{"$f":"$D$32*C36","v":0}]
["B","Adicional de Férias\n(Valor referente a 1/3 x 1/12 x Remuneração)",2.7799999999999998E-2,{"$f":"C37*D32","v":0}]
["TOTAL SUBMÓDULO 2.1",null,{"$f":"TRUNC(SUM(C36:C37),4)","v":0.1111},{"$f":"TRUNC(SUM(D36:D37),2)","v":0}]
[]
["Submódulo 2.2 - GPS, FGTS e Outras Contribuições",null,"%","VALOR (R$)"]
["A","INSS\n(Art. 22, Inciso I, da Lei 8.212, de 24 de julho de 1991.​)",0.2,{"$f":"($D$32+$D$38)*C41","v":0}]
["B","Salário Educação\n(Art. 3º, Inciso I, Decreto 87.043, de 22 de março de 1982.​)",2.5000000000000001E-2,{"$f":"($D$32+$D$38)*C42","v":0}]
["C","SAT \n(Art. 22, II, Lei 8.212, de 1991. Resolução MPS/CNPS Nº 1.329, de 25/4/2017.). RAT: 4923-0/02. FAP neutro = 1. \nEmpresa deve preencher de acordo com o valor por ela suportado.",0.03,{"$f":"($D$32+$D$38)*C43","v":0}]
["D","SESC ou SESI\n(Art. 30, Lei 8.036, de 11 de maio de 1990.)",1.4999999999999999E-2,0]
["E","SENAI - SENAC\n(Art. 1º, caput, Decreto-Lei 6.246, de 1944 (SENAI) e art. 4º, caput do Decreto-Lei 8.621, de 1946. (SENAC).",0.01,0]
["F","SEBRAE\n(Art. 8º, Lei 8.029, de 12 de abril de 1990.)",6.0000000000000001E-3,0]
["G","INCRA\n(Art. 1°, I, 2 c/c art. 3°, ambos do Decreto-Lei 1.146, de 31 de dezembro de 1970.)",2E-3,0]
["H","FGTS",0.08,0]
["TOTAL SUBMÓDULO 2.2",null,{"$f":"SUM(C41:C48)","v":0.36800000000000005},{"$f":"TRUNC(SUM(D41:D48),2)","v":0}]
[]
["Submódulo 2.3 - Benefícios Mensais e Diários",null,null,"VALOR (R$)"]
["A","Auxílio Transporte \n(Clásula 16ª da CCT)",null,{"$f":"IF((C52*2*22)-(D25*6%)>0,(C52*2*22)-(D25*6%),0)","v":0}]
["B","Auxílio Refeição/Alimentação \n(Clásula 15ª da CCT)",null,{"$f":"C53*22","v":0}]
["C","Auxílio Creche\n(Clásula 19ª da CCT - provisão)",null,{"$f":"C54*0.04","v":0}]
["D","Cesta Básica \n(Clásula 14ª da CCT)",null,{"$f":"C55","v":0}]
["E","Plano de Saúde / Plano de Assistência e Cuidado Pessoal \n(Cláusula 17ª da CCT)",null,{"$f":"C56","v":0}]
["TOTAL SUBMÓDULO 2.3",null,null,{"$f":"TRUNC(SUM(D52:D56),2)","v":0}]
[]
["QUADRO-RESUMO DO MÓDULO 2 - ENCARGOS, BENEFÍCIOS ANUAIS, MENSAIS E DIÁRIOS"]
["Módulo 2 - Encargos, Benefícios Anuais, Mensais e Diários",null,null,"VALOR (R$)"]
["2.1","13º Salário, Férias e Adicional de Férias",null,{"$f":"D38","v":0}]
["2.2","GPS, FGTS e Outras Contribuições",null,{"$f":"D49","v":0}]
["2.3","Benefícios Mensais e Diários",null,{"$f":"D57","v":0}]
["TOTAL DO MÓDULO 2",null,null,{"$f":"TRUNC(SUM(D61:D63),2)","v":0}]
[]
["MÓDULO 3 – PROVISÃO PARA RESCISÃO"]
[3,"PROVISÃO PARA RESCISÃO","%","VALOR (R$)"]
["A","Aviso prévio indenizado\n(Premissa de que 5% dos funcionários serão demitidos em condições de receber aviso prévio indenizado: 5%/12)",{"$f":"5%/12","v":4.1666666666666666E-3},{"$f":"$D$32*C68","v":0}]
["B","Incidência do FGTS sobre o Aviso prévio indenizado\n(incidência de 8% do FGTS sobre o % do aviso prévio indenizado)",{"$f":"0.08*C68","v":3.3333333333333332E-4},{"$f":"$D$32*C69","v":0}]
["C","Multa do FGTS sobre o Aviso Prévio Indenizado\n(Base de Cálculo da Multa é a soma do módulo 1 com submódulo 2.1 sem incidência dos encargos do 2.2.)",1.6000000000000001E-3,{"$f":"($D$32+$D$38)*C70","v":0}]
["D","Aviso prévio  trabalhado\n(Premissa de que 100% dos funcionários serão demitidos ao final do contrato de 12 meses.) ",1.9400000000000001E-2,{"$f":"$D$32*C71","v":0}]
["E","Incidência do Submódulo 2.2 sobre o Aviso Prévio Trabalhado\n(incidência de 8% do FGTS sobre o % do aviso prévio trabalhado)",{"$f":"C49*C71","v":7.1392000000000009E-3},{"$f":"$D$32*C72","v":0}]
["F","Multa do FGTS sobre o Aviso Prévio Trabalhado\n(Base de Cálculo da Multa é a soma do módulo 1 com submódulo 2.1 sem incidência dos encargos do 2.2)",{"$f":"0.4*0.08","v":3.2000000000000001E-2},0]
["TOTAL DO MÓDULO 3",null,null,{"$f":"TRUNC(SUM(D68:D73),2)","v":0}]
[]
["MÓDULO 4 – CUSTO DE REPOSIÇÃO DO PROFISSIONAL AUSENTE"]
["Base de Cálculo do Custo do Substituto (BCCS) = Módulos 1 + 2 + Férias - (V. Transporte e V. Alimentação) + 3 ",null,null,"VALOR (R$)"]
["Módulo 1 - Remuneração",null,null,{"$f":"D19","v":0}]
["Módulo 2 - Encargos e Benefícios Anuais, Mensais e Diários",null,null,{"$f":"D64","v":0}]
["Acréscimo das Férias com incidência do 2.2 ",null,null,{"$f":"1/12*D32*(1+C49)","v":0}]
["Desconto do Auxílio-Refeição",null,null,{"$f":"-D53","v":0}]
["Módulo 3 - Provisão para Rescisão",null,null,{"$f":"D74","v":0}]
["TOTAL BCCS",null,null,{"$f":"TRUNC(SUM(D78:D82),2)","v":0}]
[]
["Submódulo 4.1 - Substituto nas Ausências Legais",null,"%","VALOR (R$)"]
["A","Férias ",0,{"$f":"$D$83*C86","v":0}]
["B","Faltas e Ausências Legais",0,{"$f":"$D$83*C87","v":0}]
["C","Licença Paternidade",2.0000000000000001E-4,0]
["D","Acidente de Trabalho ",5.1000000000000004E-4,0]
["E","Auxílio Doença",1.1100000000000001E-3,0]
["F","Afastamento Maternidade",3.8999999999999999E-4,0]
["TOTAL MÓDULO 4",null,{"$f":"TRUNC(SUM(C86:C91),4)","v":2.2000000000000001E-3},{"$f":"TRUNC(SUM(D86:D91),2)","v":0}]
[]
["MÓDULO 5 – INSUMOS DIVERSOS"]
[5,"INSUMOS DIVERSOS",null,"VALOR (R$)"]
["A","Crachá ",null,{"$f":"'INSUMOS - Módulo 5'!F13","v":0}]
[]
["TOTAL DO MÓDULO 5",null,null,{"$f":"TRUNC(SUM(D96:D97),2)","v":0}]
[]
["MÓDULO 6 – CUSTOS INDIRETOS, TRIBUTOS E LUCRO"]
[6,"CUSTOS INDIRETOS, TRIBUTOS E LUCRO","%","VALOR (R$)"]
["A","Custos Indiretos",0.05,{"$f":"TRUNC(C102*D119,2)","v":0}]
["B","Subtotal 1 (A + Total Custos Diretos)",null,{"$f":"D102+D119","v":0}]
["C","Lucro",0.1,{"$f":"TRUNC(C104*(D102+D119),2)","v":0}]
["D","Subtotal 2 (B+C)",null,{"$f":"D103+D104","v":0}]
["E","TRIBUTOS \nTributos (estimado com base no Lucro Presumido - a empresa deverá preencher de acordo com o regime tributário a que é submetida) - (E=(D/(1-Tributos%))x(Tributos%)",8.6499999999999994E-2,{"$f":"(D105/(1-C106))*C106","v":0}]
["E.1","COFINS",0.03]
["E.2","PIS ",6.4999999999999997E-3]
["E.3","ISS",0.05]
["TOTAL DO MÓDULO 6 (A+C+E)",null,null,{"$f":"D102+D104+D106","v":0}]
[]
["QUADRO RESUMO DO CUSTO POR EMPREGADO"]
["Módulo",null,null,"VALOR (R$)"]
["A",{"$f":"A23","v":"MÓDULO 1 - COMPOSIÇÃO DA REMUNERAÇÃO"},null,{"$f":"D32","v":0}]
["B",{"$f":"A34","v":"MÓDULO 2 – ENCARGOS E BENEFÍCIOS ANUAIS, MENSAIS E DIÁRIOS"},null,{"$f":"D64","v":0}]
["C",{"$f":"A66","v":"MÓDULO 3 – PROVISÃO PARA RESCISÃO"},null,{"$f":"D74","v":0}]
["D",{"$f":"A76","v":"MÓDULO 4 – CUSTO DE REPOSIÇÃO DO PROFISSIONAL AUSENTE"},null,{"$f":"D92","v":0}]
["E",{"$f":"A94","v":"MÓDULO 5 – INSUMOS DIVERSOS"},null,{"$f":"D98","v":0}]
["Subtotal (A + B + C + D + E) - Custos Diretos",null,null,{"$f":"TRUNC(SUM(D114:D118),2)","v":0}]
["F",{"$f":"A100","v":"MÓDULO 6 – CUSTOS INDIRETOS, TRIBUTOS E LUCRO"},null,{"$f":"D110","v":0}]
["PREÇO TOTAL POR EMPREGADO / MÊS (CUSTO FIXO)",null,null,{"$f":"D120+D119","v":0}]

{"sheet":"APOIO À GESTÃO - Módulos 1 a 6","index":2,"n_rows":120,"n_cols":4,"rows_kept":120,"cut":false,"hidden":false,"merged":[[11,0,11,2],[0,0,0,3],[1,0,1,3],[2,0,2,3],[3,0,3,3],[4,0,4,2],[5,0,5,2],[6,0,6,2],[7,0,7,2],[8,0,8,2],[9,0,9,2],[10,0,10,2],[47,0,47,1],[12,0,12,2],[14,0,14,3],[20,0,20,3],[21,0,21,3],[30,0,30,1],[31,0,31,3],[32,0,32,3],[33,0,33,1],[36,0,36,1],[37,0,37,3],[38,0,38,1],[74,0,74,3],[48,0,48,3],[49,0,49,1],[55,0,55,1],[56,0,56,3],[57,0,57,1],[58,0,58,1],[62,0,62,1],[63,0,63,3],[64,0,64,1],[72,0,72,1],[73,0,73,3],[98,0,98,3],[75,0,75,2],[76,0,76,1],[77,0,77,1],[78,0,78,1],[79,0,79,1],[80,0,80,1],[81,0,81,1],[83,0,83,1],[90,0,90,1],[92,0,92,3],[96,0,96,1],[119,0,119,2],[101,1,101,2],[103,1,103,2],[108,0,108,2],[110,0,110,3],[111,0,111,1],[117,0,117,2]]}
["MÓDULOS 1 A 6 (CUSTOS FIXOS)"]
["Planilha de Custos e Formação de Preços "]
["Assistente de apoio à gestão"]
["Discriminação dos Serviços"]
["Data de apresentação da proposta",null,null,"Licitante Preencher"]
["Município",null,null,"Fortaleza - CE"]
["Ano do Acordo, Convenção ou Dissídio Coletivo",null,null,"CE000086/2025"]
["Tipo de Serviço",null,null,"Apoio à gestão"]
["Unidade de Medida",null,null,"Posto"]
["Quantidade máxima passível de contratação em função da unidade de medida",null,null,{"$f":"'QUADRO RESUMO'!G7","v":6}]
["Nº de meses de execução contratual",null,null,12]
["Regime Tributário da Empresa",null,null,"Licitante Preencher"]
["Se Optante pelo Simples Nacional, preencher o faturamento acumulado dos últimos 12 meses ",null,null,"Licitante Preencher"]
[]
["Dados complementares para composição dos custos referente à mão-de-obra"]
[1,"Tipo de serviço",null,"Apoio à gestão"]
[2,"Classificação Brasileira de Ocupações (CBO)",null,"4110-10"]
[]
[4,"Categoria profissional (vinculada à execução contratual)",null,"ASSISTENTE DE APOIO A GESTÃO"]
[5,"Data base da categoria (dia/mês/ano)",null,"2025-01-01"]
[]
["MÓDULO 1 - COMPOSIÇÃO DA REMUNERAÇÃO"]
[1,"COMPOSIÇÃO DA REMUNERAÇÃO","%","VALOR (R$)"]
["A","Salário Base (Cláusula 3ª)",null,{"$f":"D18","v":0}]
["B","Adicional Periculosidade ",0.3,0]
["C","Adicional Insalubridade","20%~40%",0]
["D","Adicional Noturno",0.2,0]
["E","Adicional de Hora Noturna Reduzida",null,0]
["F","Adicional de Hora Extra no Feriado Trabalhado",null,0]
["G","Outros (especificar)",null,0]
["TOTAL DO MÓDULO 1",null,null,{"$f":"TRUNC(SUM(D24:D30),2)","v":0}]
[]
["MÓDULO 2 – ENCARGOS E BENEFÍCIOS ANUAIS, MENSAIS E DIÁRIOS"]
["Submódulo 2.1 - 13º Salário, Férias e Adicional de Férias",null,"%","VALOR (R$)"]
["A","13 (Décimo-terceiro) salário \n(Valor referente a 1/12 x Remuneração.)",8.3299999999999999E-2,{"$f":"$D$31*C35","v":0}]
["B","Adicional de Férias\n(Valor referente a 1/3 x 1/12 x Remuneração)",2.7799999999999998E-2,{"$f":"C36*D31","v":0}]
["TOTAL SUBMÓDULO 2.1",null,{"$f":"TRUNC(SUM(C35:C36),4)","v":0.1111},{"$f":"TRUNC(SUM(D35:D36),2)","v":0}]
[]
["Submódulo 2.2 - GPS, FGTS e Outras Contribuições",null,"%","VALOR (R$)"]
["A","INSS\n(Art. 22, Inciso I, da Lei 8.212, de 24 de julho de 1991.​)",0.2,{"$f":"($D$31+$D$37)*C40","v":0}]
["B","Salário Educação\n(Art. 3º, Inciso I, Decreto 87.043, de 22 de março de 1982.​)",2.5000000000000001E-2,{"$f":"($D$31+$D$37)*C41","v":0}]
["C","SAT \n(Art. 22, II, Lei 8.212, de 1991. Resolução MPS/CNPS Nº 1.329, de 25/4/2017.). RAT: 4923-0/02. FAP neutro = 1. \nEmpresa deve preencher de acordo com o valor por ela suportado.",0.03,{"$f":"($D$31+$D$37)*C42","v":0}]
["D","SESC ou SESI\n(Art. 30, Lei 8.036, de 11 de maio de 1990.)",1.4999999999999999E-2,0]
["E","SENAI - SENAC\n(Art. 1º, caput, Decreto-Lei 6.246, de 1944 (SENAI) e art. 4º, caput do Decreto-Lei 8.621, de 1946. (SENAC).",0.01,0]
["F","SEBRAE\n(Art. 8º, Lei 8.029, de 12 de abril de 1990.)",6.0000000000000001E-3,0]
["G","INCRA\n(Art. 1°, I, 2 c/c art. 3°, ambos do Decreto-Lei 1.146, de 31 de dezembro de 1970.)",2E-3,0]
["H","FGTS",0.08,0]
["TOTAL SUBMÓDULO 2.2",null,{"$f":"SUM(C40:C47)","v":0.36800000000000005},{"$f":"TRUNC(SUM(D40:D47),2)","v":0}]
[]
["Submódulo 2.3 - Benefícios Mensais e Diários",null,null,"VALOR (R$)"]
["A","Auxílio Transporte \n(Clásula 16ª da CCT)",null,{"$f":"IF((C51*2*22)-(D24*6%)>0,(C51*2*22)-(D24*6%),0)","v":0}]
["B","Auxílio Refeição/Alimentação \n(Clásula 15ª da CCT)",null,{"$f":"C52*22","v":0}]
["C","Auxílio Creche\n(Clásula 19ª da CCT - provisão)",null,{"$f":"C53*0.04","v":0}]
["D","Cesta Básica \n(Clásula 14ª da CCT)",null,{"$f":"C54","v":0}]
["E","Plano de Saúde / Plano de Assistência e Cuidado Pessoal \n(Cláusula 17ª da CCT)",null,{"$f":"C55","v":0}]
["TOTAL SUBMÓDULO 2.3",null,null,{"$f":"TRUNC(SUM(D51:D55),2)","v":0}]
[]
["QUADRO-RESUMO DO MÓDULO 2 - ENCARGOS, BENEFÍCIOS ANUAIS, MENSAIS E DIÁRIOS"]
["Módulo 2 - Encargos, Benefícios Anuais, Mensais e Diários",null,null,"VALOR (R$)"]
["2.1","13º Salário, Férias e Adicional de Férias",null,{"$f":"D37","v":0}]
["2.2","GPS, FGTS e Outras Contribuições",null,{"$f":"D48","v":0}]
["2.3","Benefícios Mensais e Diários",null,{"$f":"D56","v":0}]
["TOTAL DO MÓDULO 2",null,null,{"$f":"TRUNC(SUM(D60:D62),2)","v":0}]
[]
["MÓDULO 3 – PROVISÃO PARA RESCISÃO"]
[3,"PROVISÃO PARA RESCISÃO","%","VALOR (R$)"]
["A","Aviso prévio indenizado\n(Premissa de que 5% dos funcionários serão demitidos em condições de receber aviso prévio indenizado: 5%/12)",{"$f":"5%/12","v":4.1666666666666666E-3},{"$f":"$D$31*C67","v":0}]
["B","Incidência do FGTS sobre o Aviso prévio indenizado\n(incidência de 8% do FGTS sobre o % do aviso prévio indenizado)",{"$f":"0.08*C67","v":3.3333333333333332E-4},{"$f":"$D$31*C68","v":0}]
["C","Multa do FGTS sobre o Aviso Prévio Indenizado\n(Base de Cálculo da Multa é a soma do módulo 1 com submódulo 2.1 sem incidência dos encargos do 2.2.)",1.6000000000000001E-3,{"$f":"($D$31+$D$37)*C69","v":0}]
["D","Aviso prévio  trabalhado\n(Premissa de que 100% dos funcionários serão demitidos ao final do contrato de 12 meses.) ",1.9400000000000001E-2,{"$f":"$D$31*C70","v":0}]
["E","Incidência do Submódulo 2.2 sobre o Aviso Prévio Trabalhado\n(incidência de 8% do FGTS sobre o % do aviso prévio trabalhado)",{"$f":"C48*C70","v":7.1392000000000009E-3},{"$f":"$D$31*C71","v":0}]
["F","Multa do FGTS sobre o Aviso Prévio Trabalhado\n(Base de Cálculo da Multa é a soma do módulo 1 com submódulo 2.1 sem incidência dos encargos do 2.2)",{"$f":"0.4*0.08","v":3.2000000000000001E-2},{"$f":"$D$31*C72","v":0}]
["TOTAL DO MÓDULO 3",null,null,{"$f":"TRUNC(SUM(D67:D72),2)","v":0}]
[]
["MÓDULO 4 – CUSTO DE REPOSIÇÃO DO PROFISSIONAL AUSENTE"]
["Base de Cálculo do Custo do Substituto (BCCS) = Módulos 1 + 2 + Férias - (V. Transporte e V. Alimentação) + 3 ",null,null,"VALOR (R$)"]
["Módulo 1 - Remuneração",null,null,{"$f":"D18","v":0}]
["Módulo 2 - Encargos e Benefícios Anuais, Mensais e Diários",null,null,{"$f":"D63","v":0}]
["Acréscimo das Férias com incidência do 2.2 ",null,null,{"$f":"1/12*D31*(1+C48)","v":0}]
["Desconto do Auxílio-Refeição",null,null,{"$f":"-D52","v":0}]
["Módulo 3 - Provisão para Rescisão",null,null,{"$f":"D73","v":0}]
["TOTAL BCCS",null,null,{"$f":"TRUNC(SUM(D77:D81),2)","v":0}]
[]
["Submódulo 4.1 - Substituto nas Ausências Legais",null,"%","VALOR (R$)"]
["A","Férias ",0,{"$f":"$D$82*C85","v":0}]
["B","Faltas e Ausências Legais",0,{"$f":"$D$82*C86","v":0}]
["C","Licença Paternidade",2.0000000000000001E-4,0]
["D","Acidente de Trabalho ",5.1000000000000004E-4,0]
["E","Auxílio Doença",1.1100000000000001E-3,0]
["F","Afastamento Maternidade",3.8999999999999999E-4,0]
["TOTAL MÓDULO 4",null,{"$f":"TRUNC(SUM(C85:C90),4)","v":2.2000000000000001E-3},{"$f":"TRUNC(SUM(D85:D90),2)","v":0}]
[]
["MÓDULO 5 – INSUMOS DIVERSOS"]
[5,"INSUMOS DIVERSOS",null,"VALOR (R$)"]
["A","Crachá  ",null,{"$f":"'INSUMOS - Módulo 5'!F13","v":0}]
[]
["TOTAL DO MÓDULO 5",null,null,{"$f":"TRUNC(SUM(D95:D96),2)","v":0}]
[]
["MÓDULO 6 – CUSTOS INDIRETOS, TRIBUTOS E LUCRO"]
[6,"CUSTOS INDIRETOS, TRIBUTOS E LUCRO","%","VALOR (R$)"]
["A","Custos Indiretos",0.05,{"$f":"TRUNC(C101*D118,2)","v":0}]
["B","Subtotal 1 (A + Total Custos Diretos)",null,{"$f":"D101+D118","v":0}]
["C","Lucro",0.1,{"$f":"TRUNC(C103*(D101+D118),2)","v":0}]
["D","Subtotal 2 (B+C)",null,{"$f":"D102+D103","v":0}]
["E","TRIBUTOS \nTributos (estimado com base no Lucro Presumido - a empresa deverá preencher de acordo com o regime tributário a que é submetida) - (E=(D/(1-Tributos%))x(Tributos%)",8.6499999999999994E-2,{"$f":"(D104/(1-C105))*C105","v":0}]
["E.1","COFINS",0.03]
["E.2","PIS ",6.4999999999999997E-3]
["E.3","ISS",0.05]
["TOTAL DO MÓDULO 6 (A+C+E)",null,null,{"$f":"D101+D103+D105","v":0}]
[]
["QUADRO RESUMO DO CUSTO POR EMPREGADO"]
["Módulo",null,null,"VALOR (R$)"]
["A",{"$f":"A22","v":"MÓDULO 1 - COMPOSIÇÃO DA REMUNERAÇÃO"},null,{"$f":"D31","v":0}]
["B",{"$f":"A33","v":"MÓDULO 2 – ENCARGOS E BENEFÍCIOS ANUAIS, MENSAIS E DIÁRIOS"},null,{"$f":"D63","v":0}]
["C",{"$f":"A65","v":"MÓDULO 3 – PROVISÃO PARA RESCISÃO"},null,{"$f":"D73","v":0}]
["D",{"$f":"A75","v":"MÓDULO 4 – CUSTO DE REPOSIÇÃO DO PROFISSIONAL AUSENTE"},null,{"$f":"D91","v":0}]
["E",{"$f":"A93","v":"MÓDULO 5 – INSUMOS DIVERSOS"},null,{"$f":"D97","v":0}]
["Subtotal (A + B + C + D + E) - Custos Diretos",null,null,{"$f":"TRUNC(SUM(D113:D117),2)","v":0}]
["F",{"$f":"A99","v":"MÓDULO 6 – CUSTOS INDIRETOS, TRIBUTOS E LUCRO"},null,{"$f":"D109","v":0}]
["PREÇO TOTAL POR EMPREGADO / MÊS (CUSTO FIXO)",null,null,{"$f":"D119+D118","v":0}]

{"sheet":"SERVIÇOS GERAIS - Módulos 1 a 6","index":3,"n_rows":121,"n_cols":4,"rows_kept":121,"cut":false,"hidden":false,"merged":[[120,0,120,2],[102,1,102,2],[104,1,104,2],[109,0,109,2],[111,0,111,3],[112,0,112,1],[118,0,118,2],[99,0,99,3],[76,0,76,2],[77,0,77,1],[78,0,78,1],[79,0,79,1],[80,0,80,1],[81,0,81,1],[82,0,82,1],[84,0,84,1],[91,0,91,1],[93,0,93,3],[97,0,97,1],[75,0,75,3],[49,0,49,3],[50,0,50,1],[56,0,56,1],[57,0,57,3],[58,0,58,1],[59,0,59,1],[63,0,63,1],[64,0,64,3],[65,0,65,1],[73,0,73,1],[74,0,74,3],[48,0,48,1],[12,0,12,2],[14,0,14,3],[21,0,21,3],[22,0,22,3],[31,0,31,1],[32,0,32,3],[33,0,33,3],[34,0,34,1],[37,0,37,1],[38,0,38,3],[39,0,39,1],[11,0,11,2],[0,0,0,3],[1,0,1,3],[2,0,2,3],[3,0,3,3],[4,0,4,2],[5,0,5,2],[6,0,6,2],[7,0,7,2],[8,0,8,2],[9,0,9,2],[10,0,10,2]]}
["MÓDULOS 1 A 6 (CUSTOS FIXOS)"]
["Planilha de Custos e Formação de Preços "]
["Auxiliar de Serviços Gerais"]
["Discriminação dos Serviços"]
["Data de apresentação da proposta",null,null,"Licitante Preencher"]
["Município",null,null,"Fortaleza - CE"]
["Ano do Acordo, Convenção ou Dissídio Coletivo",null,null,"CE000086/2025"]
["Tipo de Serviço",null,null,"Serviços Gerais"]
["Unidade de Medida",null,null,"Posto"]
["Quantidade máxima passível de contratação em função da unidade de medida",null,null,{"$f":"'QUADRO RESUMO'!G8","v":2}]
["Nº de meses de execução contratual",null,null,12]
["Regime Tributário da Empresa",null,null,"Licitante Preencher"]
["Se Optante pelo Simples Nacional, preencher o faturamento acumulado dos últimos 12 meses ",null,null,"Licitante Preencher"]
[]
["Dados complementares para composição dos custos referente à mão-de-obra"]
[1,"Tipo de serviço",null,"Serviços Gerais"]
[2,"Classificação Brasileira de Ocupações (CBO)",null,"5143-20"]
[3,"Salário Nominativo da Categoria Profissional"]
[4,"Ajuste para complementação do salário mínimo até a CCT 2026"]
[5,"Categoria profissional (vinculada à execução contratual)",null,"AUXILIAR DE SERVIÇOS GERAIS"]
[6,"Data base da categoria (dia/mês/ano)",null,"2025-01-01"]
[]
["MÓDULO 1 - COMPOSIÇÃO DA REMUNERAÇÃO"]
[1,"COMPOSIÇÃO DA REMUNERAÇÃO","%","VALOR (R$)"]
["A","Salário Base (Cláusula 3ª)",null,{"$f":"D19","v":0}]
["B","Adicional Periculosidade ",0.3,0]
["C","Adicional Insalubridade","20%~40%",0]
["D","Adicional Noturno",0.2,0]
["E","Adicional de Hora Noturna Reduzida",null,0]
["F","Adicional de Hora Extra no Feriado Trabalhado",null,0]
["G","Outros (especificar)",null,0]
["TOTAL DO MÓDULO 1",null,null,{"$f":"TRUNC(SUM(D25:D31),2)","v":0}]
[]
["MÓDULO 2 – ENCARGOS E BENEFÍCIOS ANUAIS, MENSAIS E DIÁRIOS"]
["Submódulo 2.1 - 13º Salário, Férias e Adicional de Férias",null,"%","VALOR (R$)"]
["A","13 (Décimo-terceiro) salário \n(Valor referente a 1/12 x Remuneração.)",8.3299999999999999E-2,{"$f":"$D$32*C36","v":0}]
["B","Adicional de Férias\n(Valor referente a 1/3 x 1/12 x Remuneração)",2.7799999999999998E-2,{"$f":"C37*D32","v":0}]
["TOTAL SUBMÓDULO 2.1",null,{"$f":"TRUNC(SUM(C36:C37),4)","v":0.1111},{"$f":"TRUNC(SUM(D36:D37),2)","v":0}]
[]
["Submódulo 2.2 - GPS, FGTS e Outras Contribuições",null,"%","VALOR (R$)"]
["A","INSS\n(Art. 22, Inciso I, da Lei 8.212, de 24 de julho de 1991.​)",0.2,{"$f":"($D$32+$D$38)*C41","v":0}]
["B","Salário Educação\n(Art. 3º, Inciso I, Decreto 87.043, de 22 de março de 1982.​)",2.5000000000000001E-2,{"$f":"($D$32+$D$38)*C42","v":0}]
["C","SAT \n(Art. 22, II, Lei 8.212, de 1991. Resolução MPS/CNPS Nº 1.329, de 25/4/2017.). RAT: 4923-0/02. FAP neutro = 1. \nEmpresa deve preencher de acordo com o valor por ela suportado.",0.03,{"$f":"($D$32+$D$38)*C43","v":0}]
["D","SESC ou SESI\n(Art. 30, Lei 8.036, de 11 de maio de 1990.)",1.4999999999999999E-2,0]
["E","SENAI - SENAC\n(Art. 1º, caput, Decreto-Lei 6.246, de 1944 (SENAI) e art. 4º, caput do Decreto-Lei 8.621, de 1946. (SENAC).",0.01,0]
["F","SEBRAE\n(Art. 8º, Lei 8.029, de 12 de abril de 1990.)",6.0000000000000001E-3,0]
["G","INCRA\n(Art. 1°, I, 2 c/c art. 3°, ambos do Decreto-Lei 1.146, de 31 de dezembro de 1970.)",2E-3,0]
["H","FGTS",0.08,0]
["TOTAL SUBMÓDULO 2.2",null,{"$f":"SUM(C41:C48)","v":0.36800000000000005},{"$f":"TRUNC(SUM(D41:D48),2)","v":0}]
[]
["Submódulo 2.3 - Benefícios Mensais e Diários",null,null,"VALOR (R$)"]
["A","Auxílio Transporte \n(Clásula 16ª da CCT)",null,{"$f":"IF((C52*2*22)-(D25*6%)>0,(C52*2*22)-(D25*6%),0)","v":0}]
["B","Auxílio Refeição/Alimentação \n(Clásula 15ª da CCT)",null,{"$f":"C53*22","v":0}]
["C","Auxílio Creche\n(Clásula 19ª da CCT - provisão)",null,{"$f":"C54*0.04","v":0}]
["D","Cesta Básica \n(Clásula 14ª da CCT)",null,{"$f":"C55","v":0}]
["E","Plano de Saúde / Plano de Assistência e Cuidado Pessoal \n(Cláusula 17ª da CCT)",null,{"$f":"C56","v":0}]
["TOTAL SUBMÓDULO 2.3",null,null,{"$f":"TRUNC(SUM(D52:D56),2)","v":0}]
[]
["QUADRO-RESUMO DO MÓDULO 2 - ENCARGOS, BENEFÍCIOS ANUAIS, MENSAIS E DIÁRIOS"]
["Módulo 2 - Encargos, Benefícios Anuais, Mensais e Diários",null,null,"VALOR (R$)"]
["2.1","13º Salário, Férias e Adicional de Férias",null,{"$f":"D38","v":0}]
["2.2","GPS, FGTS e Outras Contribuições",null,{"$f":"D49","v":0}]
["2.3","Benefícios Mensais e Diários",null,{"$f":"D57","v":0}]
["TOTAL DO MÓDULO 2",null,null,{"$f":"TRUNC(SUM(D61:D63),2)","v":0}]
[]
["MÓDULO 3 – PROVISÃO PARA RESCISÃO"]
[3,"PROVISÃO PARA RESCISÃO","%","VALOR (R$)"]
["A","Aviso prévio indenizado\n(Premissa de que 5% dos funcionários serão demitidos em condições de receber aviso prévio indenizado: 5%/12)",{"$f":"5%/12","v":4.1666666666666666E-3},{"$f":"$D$32*C68","v":0}]
["B","Incidência do FGTS sobre o Aviso prévio indenizado\n(incidência de 8% do FGTS sobre o % do aviso prévio indenizado)",{"$f":"0.08*C68","v":3.3333333333333332E-4},{"$f":"$D$32*C69","v":0}]
["C","Multa do FGTS sobre o Aviso Prévio Indenizado\n(Base de Cálculo da Multa é a soma do módulo 1 com submódulo 2.1 sem incidência dos encargos do 2.2.)",1.6000000000000001E-3,{"$f":"($D$32+$D$38)*C70","v":0}]
["D","Aviso prévio  trabalhado\n(Premissa de que 100% dos funcionários serão demitidos ao final do contrato de 12 meses.) ",1.9400000000000001E-2,{"$f":"$D$32*C71","v":0}]
["E","Incidência do Submódulo 2.2 sobre o Aviso Prévio Trabalhado\n(incidência de 8% do FGTS sobre o % do aviso prévio trabalhado)",{"$f":"C49*C71","v":7.1392000000000009E-3},{"$f":"$D$32*C72","v":0}]
["F","Multa do FGTS sobre o Aviso Prévio Trabalhado\n(Base de Cálculo da Multa é a soma do módulo 1 com submódulo 2.1 sem incidência dos encargos do 2.2)",{"$f":"0.4*0.08","v":3.2000000000000001E-2},{"$f":"$D$32*C73","v":0}]
["TOTAL DO MÓDULO 3",null,null,{"$f":"TRUNC(SUM(D68:D73),2)","v":0}]
[]
["MÓDULO 4 – CUSTO DE REPOSIÇÃO DO PROFISSIONAL AUSENTE"]
["Base de Cálculo do Custo do Substituto (BCCS) = Módulos 1 + 2 + Férias - (V. Transporte e V. Alimentação) + 3 ",null,null,"VALOR (R$)"]
["Módulo 1 - Remuneração",null,null,{"$f":"D19","v":0}]
["Módulo 2 - Encargos e Benefícios Anuais, Mensais e Diários",null,null,{"$f":"D64","v":0}]
["Acréscimo das Férias com incidência do 2.2 ",null,null,{"$f":"1/12*D32*(1+C49)","v":0}]
["Desconto do Auxílio-Refeição",null,null,{"$f":"-D53","v":0}]
["Módulo 3 - Provisão para Rescisão",null,null,{"$f":"D74","v":0}]
["TOTAL BCCS",null,null,{"$f":"TRUNC(SUM(D78:D82),2)","v":0}]
[]
["Submódulo 4.1 - Substituto nas Ausências Legais",null,"%","VALOR (R$)"]
["A","Férias ",8.3330000000000001E-2,{"$f":"$D$83*C86","v":0}]
["B","Faltas e Ausências Legais",4.15E-3,{"$f":"$D$83*C87","v":0}]
["C","Licença Paternidade",2.0000000000000001E-4,0]
["D","Acidente de Trabalho ",5.1000000000000004E-4,0]
["E","Auxílio Doença",1.1100000000000001E-3,0]
["F","Afastamento Maternidade",3.8999999999999999E-4,0]
["TOTAL MÓDULO 4",null,{"$f":"TRUNC(SUM(C86:C91),4)","v":8.9599999999999999E-2},{"$f":"TRUNC(SUM(D86:D91),2)","v":0}]
[]
["MÓDULO 5 – INSUMOS DIVERSOS"]
[5,"INSUMOS DIVERSOS",null,"VALOR (R$)"]
["A","Uniforme",null,{"$f":"'INSUMOS - Módulo 5'!F65","v":0}]
["B","Insumos",null,{"$f":"'INSUMOS - Módulo 5'!F76","v":0}]
["TOTAL DO MÓDULO 5",null,null,{"$f":"TRUNC(SUM(D96:D97),2)","v":0}]
[]
["MÓDULO 6 – CUSTOS INDIRETOS, TRIBUTOS E LUCRO"]
[6,"CUSTOS INDIRETOS, TRIBUTOS E LUCRO","%","VALOR (R$)"]
["A","Custos Indiretos",0.05,{"$f":"TRUNC(C102*D119,2)","v":0}]
["B","Subtotal 1 (A + Total Custos Diretos)",null,{"$f":"D102+D119","v":0}]
["C","Lucro",0.1,{"$f":"TRUNC(C104*(D102+D119),2)","v":0}]
["D","Subtotal 2 (B+C)",null,{"$f":"D103+D104","v":0}]
["E","TRIBUTOS \nTributos (estimado com base no Lucro Presumido - a empresa deverá preencher de acordo com o regime tributário a que é submetida) - (E=(D/(1-Tributos%))x(Tributos%)",8.6499999999999994E-2,{"$f":"(D105/(1-C106))*C106","v":0}]
["E.1","COFINS",0.03]
["E.2","PIS ",6.4999999999999997E-3]
["E.3","ISS",0.05]
["TOTAL DO MÓDULO 6 (A+C+E)",null,null,{"$f":"D102+D104+D106","v":0}]
[]
["QUADRO RESUMO DO CUSTO POR EMPREGADO"]
["Módulo",null,null,"VALOR (R$)"]
["A",{"$f":"A23","v":"MÓDULO 1 - COMPOSIÇÃO DA REMUNERAÇÃO"},null,{"$f":"D32","v":0}]
["B",{"$f":"A34","v":"MÓDULO 2 – ENCARGOS E BENEFÍCIOS ANUAIS, MENSAIS E DIÁRIOS"},null,{"$f":"D64","v":0}]
["C",{"$f":"A66","v":"MÓDULO 3 – PROVISÃO PARA RESCISÃO"},null,{"$f":"D74","v":0}]
["D",{"$f":"A76","v":"MÓDULO 4 – CUSTO DE REPOSIÇÃO DO PROFISSIONAL AUSENTE"},null,{"$f":"D92","v":0}]
["E",{"$f":"A94","v":"MÓDULO 5 – INSUMOS DIVERSOS"},null,{"$f":"D98","v":0}]
["Subtotal (A + B + C + D + E) - Custos Diretos",null,null,{"$f":"TRUNC(SUM(D114:D118),2)","v":0}]
["F",{"$f":"A100","v":"MÓDULO 6 – CUSTOS INDIRETOS, TRIBUTOS E LUCRO"},null,{"$f":"D110","v":0}]
["PREÇO TOTAL POR EMPREGADO / MÊS (CUSTO FIXO)",null,null,{"$f":"D120+D119","v":0}]

{"sheet":"COPEIRA - Módulos 1 a 6","index":4,"n_rows":121,"n_cols":4,"rows_kept":121,"cut":false,"hidden":false,"merged":[[120,0,120,2],[102,1,102,2],[104,1,104,2],[109,0,109,2],[111,0,111,3],[112,0,112,1],[118,0,118,2],[99,0,99,3],[76,0,76,2],[77,0,77,1],[78,0,78,1],[79,0,79,1],[80,0,80,1],[81,0,81,1],[82,0,82,1],[84,0,84,1],[91,0,91,1],[93,0,93,3],[97,0,97,1],[75,0,75,3],[49,0,49,3],[50,0,50,1],[56,0,56,1],[57,0,57,3],[58,0,58,1],[59,0,59,1],[63,0,63,1],[64,0,64,3],[65,0,65,1],[73,0,73,1],[74,0,74,3],[48,0,48,1],[12,0,12,2],[14,0,14,3],[21,0,21,3],[22,0,22,3],[31,0,31,1],[32,0,32,3],[33,0,33,3],[34,0,34,1],[37,0,37,1],[38,0,38,3],[39,0,39,1],[11,0,11,2],[0,0,0,3],[1,0,1,3],[2,0,2,3],[3,0,3,3],[4,0,4,2],[5,0,5,2],[6,0,6,2],[7,0,7,2],[8,0,8,2],[9,0,9,2],[10,0,10,2]]}
["MÓDULOS 1 A 6 (CUSTOS FIXOS)"]
["Planilha de Custos e Formação de Preços "]
["Copeira"]
["Discriminação dos Serviços"]
["Data de apresentação da proposta",null,null,"Licitante Preencher"]
["Município",null,null,"Fortaleza - CE"]
["Ano do Acordo, Convenção ou Dissídio Coletivo",null,null,"CE000086/2025"]
["Tipo de Serviço",null,null,"Copeira   "]
["Unidade de Medida",null,null,"Posto"]
["Quantidade máxima passível de contratação em função da unidade de medida",null,null,{"$f":"'QUADRO RESUMO'!G9","v":2}]
["Nº de meses de execução contratual",null,null,12]
["Regime Tributário da Empresa",null,null,"Licitante Preencher"]
["Se Optante pelo Simples Nacional, preencher o faturamento acumulado dos últimos 12 meses ",null,null,"Licitante Preencher"]
[]
["Dados complementares para composição dos custos referente à mão-de-obra"]
[1,"Tipo de serviço",null,"Copeira"]
[2,"Classificação Brasileira de Ocupações (CBO)",null,"5134-25"]
[3,"Ajuste para complementação do salário mínimo até a CCT 2026"]
[4,"Salário Nominativo da Categoria Profissional"]
[5,"Categoria profissional (vinculada à execução contratual)",null,"COPEIRO"]
[6,"Data base da categoria (dia/mês/ano)",null,"2025-01-01"]
[]
["MÓDULO 1 - COMPOSIÇÃO DA REMUNERAÇÃO"]
[1,"COMPOSIÇÃO DA REMUNERAÇÃO","%","VALOR (R$)"]
["A","Salário Base (Cláusula 3ª)",null,{"$f":"D19","v":0}]
["B","Adicional Periculosidade ",0.3,0]
["C","Adicional Insalubridade","20%~40%",0]
["D","Adicional Noturno",0.2,0]
["E","Adicional de Hora Noturna Reduzida",null,0]
["F","Adicional de Hora Extra no Feriado Trabalhado",null,0]
["G","Outros (especificar)",null,0]
["TOTAL DO MÓDULO 1",null,null,{"$f":"TRUNC(SUM(D25:D31),2)","v":0}]
[]
["MÓDULO 2 – ENCARGOS E BENEFÍCIOS ANUAIS, MENSAIS E DIÁRIOS"]
["Submódulo 2.1 - 13º Salário, Férias e Adicional de Férias",null,"%","VALOR (R$)"]
["A","13 (Décimo-terceiro) salário \n(Valor referente a 1/12 x Remuneração.)",8.3299999999999999E-2,{"$f":"$D$32*C36","v":0}]
["B","Adicional de Férias\n(Valor referente a 1/3 x 1/12 x Remuneração)",2.7799999999999998E-2,{"$f":"C37*D32","v":0}]
["TOTAL SUBMÓDULO 2.1",null,{"$f":"TRUNC(SUM(C36:C37),4)","v":0.1111},{"$f":"TRUNC(SUM(D36:D37),2)","v":0}]
[]
["Submódulo 2.2 - GPS, FGTS e Outras Contribuições",null,"%","VALOR (R$)"]
["A","INSS\n(Art. 22, Inciso I, da Lei 8.212, de 24 de julho de 1991.​)",0.2,{"$f":"($D$32+$D$38)*C41","v":0}]
["B","Salário Educação\n(Art. 3º, Inciso I, Decreto 87.043, de 22 de março de 1982.​)",2.5000000000000001E-2,{"$f":"($D$32+$D$38)*C42","v":0}]
["C","SAT \n(Art. 22, II, Lei 8.212, de 1991. Resolução MPS/CNPS Nº 1.329, de 25/4/2017.). RAT: 4923-0/02. FAP neutro = 1. \nEmpresa deve preencher de acordo com o valor por ela suportado.",0.03,{"$f":"($D$32+$D$38)*C43","v":0}]
["D","SESC ou SESI\n(Art. 30, Lei 8.036, de 11 de maio de 1990.)",1.4999999999999999E-2,0]
["E","SENAI - SENAC\n(Art. 1º, caput, Decreto-Lei 6.246, de 1944 (SENAI) e art. 4º, caput do Decreto-Lei 8.621, de 1946. (SENAC).",0.01,0]
["F","SEBRAE\n(Art. 8º, Lei 8.029, de 12 de abril de 1990.)",6.0000000000000001E-3,0]
["G","INCRA\n(Art. 1°, I, 2 c/c art. 3°, ambos do Decreto-Lei 1.146, de 31 de dezembro de 1970.)",2E-3,0]
["H","FGTS",0.08,0]
["TOTAL SUBMÓDULO 2.2",null,{"$f":"SUM(C41:C48)","v":0.36800000000000005},{"$f":"TRUNC(SUM(D41:D48),2)","v":0}]
[]
["Submódulo 2.3 - Benefícios Mensais e Diários",null,null,"VALOR (R$)"]
["A","Auxílio Transporte \n(Clásula 16ª da CCT)",null,{"$f":"IF((C52*2*22)-(D25*6%)>0,(C52*2*22)-(D25*6%),0)","v":0}]
["B","Auxílio Refeição/Alimentação \n(Clásula 15ª da CCT)",null,{"$f":"C53*22","v":0}]
["C","Auxílio Creche\n(Clásula 19ª da CCT - provisão)",null,{"$f":"C54*0.04","v":0}]
["D","Cesta Básica \n(Clásula 14ª da CCT)",null,{"$f":"C55","v":0}]
["E","Plano de Saúde / Plano de Assistência e Cuidado Pessoal \n(Cláusula 17ª da CCT)",null,{"$f":"C56","v":0}]
["TOTAL SUBMÓDULO 2.3",null,null,{"$f":"TRUNC(SUM(D52:D56),2)","v":0}]
[]
["QUADRO-RESUMO DO MÓDULO 2 - ENCARGOS, BENEFÍCIOS ANUAIS, MENSAIS E DIÁRIOS"]
["Módulo 2 - Encargos, Benefícios Anuais, Mensais e Diários",null,null,"VALOR (R$)"]
["2.1","13º Salário, Férias e Adicional de Férias",null,{"$f":"D38","v":0}]
["2.2","GPS, FGTS e Outras Contribuições",null,{"$f":"D49","v":0}]
["2.3","Benefícios Mensais e Diários",null,{"$f":"D57","v":0}]
["TOTAL DO MÓDULO 2",null,null,{"$f":"TRUNC(SUM(D61:D63),2)","v":0}]
[]
["MÓDULO 3 – PROVISÃO PARA RESCISÃO"]
[3,"PROVISÃO PARA RESCISÃO","%","VALOR (R$)"]
["A","Aviso prévio indenizado\n(Premissa de que 5% dos funcionários serão demitidos em condições de receber aviso prévio indenizado: 5%/12)",{"$f":"5%/12","v":4.1666666666666666E-3},{"$f":"$D$32*C68","v":0}]
["B","Incidência do FGTS sobre o Aviso prévio indenizado\n(incidência de 8% do FGTS sobre o % do aviso prévio indenizado)",{"$f":"0.08*C68","v":3.3333333333333332E-4},{"$f":"$D$32*C69","v":0}]
["C","Multa do FGTS sobre o Aviso Prévio Indenizado\n(Base de Cálculo da Multa é a soma do módulo 1 com submódulo 2.1 sem incidência dos encargos do 2.2.)",1.6000000000000001E-3,{"$f":"($D$32+$D$38)*C70","v":0}]
["D","Aviso prévio  trabalhado\n(Premissa de que 100% dos funcionários serão demitidos ao final do contrato de 12 meses.) ",1.9400000000000001E-2,{"$f":"$D$32*C71","v":0}]
["E","Incidência do Submódulo 2.2 sobre o Aviso Prévio Trabalhado\n(incidência de 8% do FGTS sobre o % do aviso prévio trabalhado)",{"$f":"C49*C71","v":7.1392000000000009E-3},{"$f":"$D$32*C72","v":0}]
["F","Multa do FGTS sobre o Aviso Prévio Trabalhado\n(Base de Cálculo da Multa é a soma do módulo 1 com submódulo 2.1 sem incidência dos encargos do 2.2)",{"$f":"0.4*0.08","v":3.2000000000000001E-2},{"$f":"$D$32*C73","v":0}]
["TOTAL DO MÓDULO 3",null,null,{"$f":"TRUNC(SUM(D68:D73),2)","v":0}]
[]
["MÓDULO 4 – CUSTO DE REPOSIÇÃO DO PROFISSIONAL AUSENTE"]
["Base de Cálculo do Custo do Substituto (BCCS) = Módulos 1 + 2 + Férias - (V. Transporte e V. Alimentação) + 3 ",null,null,"VALOR (R$)"]
["Módulo 1 - Remuneração",null,null,{"$f":"D19","v":0}]
["Módulo 2 - Encargos e Benefícios Anuais, Mensais e Diários",null,null,{"$f":"D64","v":0}]
["Acréscimo das Férias com incidência do 2.2 ",null,null,{"$f":"1/12*D32*(1+C49)","v":0}]
["Desconto do Auxílio-Refeição",null,null,{"$f":"-D53","v":0}]
["Módulo 3 - Provisão para Rescisão",null,null,{"$f":"D74","v":0}]
["TOTAL BCCS",null,null,{"$f":"TRUNC(SUM(D78:D82),2)","v":0}]
[]
["Submódulo 4.1 - Substituto nas Ausências Legais",null,"%","VALOR (R$)"]
["A","Férias ",8.3330000000000001E-2,{"$f":"$D$83*C86","v":0}]
["B","Faltas e Ausências Legais",4.15E-3,{"$f":"$D$83*C87","v":0}]
["C","Licença Paternidade",2.0000000000000001E-4,0]
["D","Acidente de Trabalho ",5.1000000000000004E-4,0]
["E","Auxílio Doença",1.1100000000000001E-3,0]
["F","Afastamento Maternidade",3.8999999999999999E-4,0]
["TOTAL MÓDULO 4",null,{"$f":"TRUNC(SUM(C86:C91),4)","v":8.9599999999999999E-2},{"$f":"TRUNC(SUM(D86:D91),2)","v":0}]
[]
["MÓDULO 5 – INSUMOS DIVERSOS"]
[5,"INSUMOS DIVERSOS",null,"VALOR (R$)"]
["A","Uniforme",null,{"$f":"'INSUMOS - Módulo 5'!F40","v":0}]
["B","Insumos",null,{"$f":"'INSUMOS - Módulo 5'!F55","v":0}]
["TOTAL DO MÓDULO 5",null,null,{"$f":"TRUNC(SUM(D96:D97),2)","v":0}]
[]
["MÓDULO 6 – CUSTOS INDIRETOS, TRIBUTOS E LUCRO"]
[6,"CUSTOS INDIRETOS, TRIBUTOS E LUCRO","%","VALOR (R$)"]
["A","Custos Indiretos",0.05,{"$f":"TRUNC(C102*D119,2)","v":0}]
["B","Subtotal 1 (A + Total Custos Diretos)",null,{"$f":"D102+D119","v":0}]
["C","Lucro",0.1,{"$f":"TRUNC(C104*(D102+D119),2)","v":0}]
["D","Subtotal 2 (B+C)",null,{"$f":"D103+D104","v":0}]
["E","TRIBUTOS \nTributos (estimado com base no Lucro Presumido - a empresa deverá preencher de acordo com o regime tributário a que é submetida) - (E=(D/(1-Tributos%))x(Tributos%)",8.6499999999999994E-2,{"$f":"(D105/(1-C106))*C106","v":0}]
["E.1","COFINS",0.03]
["E.2","PIS ",6.4999999999999997E-3]
["E.3","ISS",0.05]
["TOTAL DO MÓDULO 6 (A+C+E)",null,null,{"$f":"D102+D104+D106","v":0}]
[]
["QUADRO RESUMO DO CUSTO POR EMPREGADO"]
["Módulo",null,null,"VALOR (R$)"]
["A",{"$f":"A23","v":"MÓDULO 1 - COMPOSIÇÃO DA REMUNERAÇÃO"},null,{"$f":"D32","v":0}]
["B",{"$f":"A34","v":"MÓDULO 2 – ENCARGOS E BENEFÍCIOS ANUAIS, MENSAIS E DIÁRIOS"},null,{"$f":"D64","v":0}]
["C",{"$f":"A66","v":"MÓDULO 3 – PROVISÃO PARA RESCISÃO"},null,{"$f":"D74","v":0}]
["D",{"$f":"A76","v":"MÓDULO 4 – CUSTO DE REPOSIÇÃO DO PROFISSIONAL AUSENTE"},null,{"$f":"D92","v":0}]
["E",{"$f":"A94","v":"MÓDULO 5 – INSUMOS DIVERSOS"},null,{"$f":"D98","v":0}]
["Subtotal (A + B + C + D + E) - Custos Diretos",null,null,{"$f":"TRUNC(SUM(D114:D118),2)","v":0}]
["F",{"$f":"A100","v":"MÓDULO 6 – CUSTOS INDIRETOS, TRIBUTOS E LUCRO"},null,{"$f":"D110","v":0}]
["PREÇO TOTAL POR EMPREGADO / MÊS (CUSTO FIXO)",null,null,{"$f":"D120+D119","v":0}]

{"sheet":"MOTORISTA - Módulos 1 a 6","index":5,"n_rows":122,"n_cols":4,"rows_kept":122,"cut":false,"hidden":false,"merged":[[47,0,47,1],[121,0,121,2],[0,0,0,3],[119,0,119,2],[103,1,103,2],[108,0,108,2],[110,0,110,3],[111,0,111,1],[117,0,117,2],[74,0,74,3],[64,0,64,1],[81,0,81,1],[83,0,83,1],[90,0,90,1],[75,0,75,2],[76,0,76,1],[14,0,14,3],[21,0,21,3],[32,0,32,3],[38,0,38,1],[33,0,33,1],[36,0,36,1],[30,0,30,1],[20,0,20,3],[31,0,31,3],[37,0,37,3],[96,0,96,1],[98,0,98,3],[101,1,101,2],[1,0,1,3],[2,0,2,3],[3,0,3,3],[4,0,4,2],[5,0,5,2],[6,0,6,2],[7,0,7,2],[8,0,8,2],[9,0,9,2],[10,0,10,2],[11,0,11,2],[12,0,12,2],[78,0,78,1],[92,0,92,3],[72,0,72,1],[48,0,48,3],[55,0,55,1],[62,0,62,1],[57,0,57,1],[58,0,58,1],[56,0,56,3],[49,0,49,1],[79,0,79,1],[80,0,80,1],[63,0,63,3],[73,0,73,3],[77,0,77,1]]}
["MÓDULOS 1 A 6 (CUSTOS FIXOS)"]
["Planilha de Custos e Formação de Preços "]
["Motorista"]
["Discriminação dos Serviços"]
["Data de apresentação da proposta",null,null,"Licitante Preencher"]
["Município",null,null,"Fortaleza - CE"]
["Ano do Acordo, Convenção ou Dissídio Coletivo",null,null,"CE000510/2025"]
["Tipo de Serviço",null,null,"Motorista "]
["Unidade de Medida",null,null,"Posto"]
["Quantidade máxima passível de contratação em função da unidade de medida",null,null,{"$f":"'QUADRO RESUMO'!G10","v":4}]
["Nº de meses de execução contratual",null,null,12]
["Regime Tributário da Empresa",null,null,"Licitante Preencher"]
["Se Optante pelo Simples Nacional, preencher o faturamento acumulado dos últimos 12 meses ",null,null,"Licitante Preencher"]
[]
["Dados complementares para composição dos custos referente à mão-de-obra"]
[1,"Tipo de serviço",null,"Motorista "]
[2,"Classificação Brasileira de Ocupações (CBO)",null,"7823-05"]
[3,"Salário Nominativo da Categoria Profissional"]
[4,"Categoria profissional (vinculada à execução contratual)",null,"MOTORISTA DE VEÍCULO DE 01 ATÉ 09 LUGARES"]
[5,"Data base da categoria (dia/mês/ano)",null,"2025-01-01"]
[]
["MÓDULO 1 - COMPOSIÇÃO DA REMUNERAÇÃO"]
[1,"COMPOSIÇÃO DA REMUNERAÇÃO","%","VALOR (R$)"]
["A","Salário Base (Cláusula 3ª)",null,{"$f":"D18","v":0}]
["B","Adicional Periculosidade ",0.3,0]
["C","Adicional Insalubridade","20%~40%",0]
["D","Adicional Noturno",0.2,0]
["E","Adicional de Hora Noturna Reduzida",null,0]
["F","Adicional de Hora Extra no Feriado Trabalhado",null,0]
["G","Outros (especificar)",null,0]
["TOTAL DO MÓDULO 1",null,null,{"$f":"TRUNC(SUM(D24:D30),2)","v":0}]
[]
["MÓDULO 2 – ENCARGOS E BENEFÍCIOS ANUAIS, MENSAIS E DIÁRIOS"]
["Submódulo 2.1 - 13º Salário, Férias e Adicional de Férias",null,"%","VALOR (R$)"]
["A","13 (Décimo-terceiro) salário \n(Valor referente a 1/12 x Remuneração.)",8.3299999999999999E-2,{"$f":"$D$31*C35","v":0}]
["B","Adicional de Férias\n(Valor referente a 1/3 x 1/12 x Remuneração)",2.7799999999999998E-2,{"$f":"C36*D31","v":0}]
["TOTAL SUBMÓDULO 2.1",null,{"$f":"TRUNC(SUM(C35:C36),4)","v":0.1111},{"$f":"TRUNC(SUM(D35:D36),2)","v":0}]
[]
["Submódulo 2.2 - GPS, FGTS e Outras Contribuições",null,"%","VALOR (R$)"]
["A","INSS\n(Art. 22, Inciso I, da Lei 8.212, de 24 de julho de 1991.​)",0.2,{"$f":"($D$31+$D$37)*C40","v":0}]
["B","Salário Educação\n(Art. 3º, Inciso I, Decreto 87.043, de 22 de março de 1982.​)",2.5000000000000001E-2,{"$f":"($D$31+$D$37)*C41","v":0}]
["C","SAT \n(Art. 22, II, Lei 8.212, de 1991. Resolução MPS/CNPS Nº 1.329, de 25/4/2017.). RAT: 4923-0/02. FAP neutro = 1. \nEmpresa deve preencher de acordo com o valor por ela suportado.",0.03,{"$f":"($D$31+$D$37)*C42","v":0}]
["D","SESC ou SESI\n(Art. 30, Lei 8.036, de 11 de maio de 1990.)",1.4999999999999999E-2,0]
["E","SENAI - SENAC\n(Art. 1º, caput, Decreto-Lei 6.246, de 1944 (SENAI) e art. 4º, caput do Decreto-Lei 8.621, de 1946. (SENAC).",0.01,0]
["F","SEBRAE\n(Art. 8º, Lei 8.029, de 12 de abril de 1990.)",6.0000000000000001E-3,0]
["G","INCRA\n(Art. 1°, I, 2 c/c art. 3°, ambos do Decreto-Lei 1.146, de 31 de dezembro de 1970.)",2E-3,0]
["H","FGTS",0.08,0]
["TOTAL SUBMÓDULO 2.2",null,{"$f":"SUM(C40:C47)","v":0.36800000000000005},{"$f":"TRUNC(SUM(D40:D47),2)","v":0}]
[]
["Submódulo 2.3 - Benefícios Mensais e Diários",null,null,"VALOR (R$)"]
["A","Auxílio Transporte (Etufor)",null,{"$f":"IF((C51*2*22)-(D24*6%)>0,(C51*2*22)-(D24*6%),0)","v":0}]
["B","Auxílio Refeição/Alimentação \n(Clausula 10ª)",null,{"$f":"C52*22","v":0}]
["C","Cesta Básica \n(Cláusula 11ª)",null,{"$f":"C53","v":0}]
["D","Seguro de Vida",null,0]
["E","Plano de Saúde / Plano de Assistência e Cuidado Pessoal \n(Cláusula 13ª)",null,{"$f":"C55","v":0}]
["TOTAL SUBMÓDULO 2.3",null,null,{"$f":"TRUNC(SUM(D51:D55),2)","v":0}]
[]
["QUADRO-RESUMO DO MÓDULO 2 - ENCARGOS, BENEFÍCIOS ANUAIS, MENSAIS E DIÁRIOS"]
["Módulo 2 - Encargos, Benefícios Anuais, Mensais e Diários",null,null,"VALOR (R$)"]
["2.1","13º Salário, Férias e Adicional de Férias",null,{"$f":"D37","v":0}]
["2.2","GPS, FGTS e Outras Contribuições",null,{"$f":"D48","v":0}]
["2.3","Benefícios Mensais e Diários",null,{"$f":"D56","v":0}]
["TOTAL DO MÓDULO 2",null,null,{"$f":"TRUNC(SUM(D60:D62),2)","v":0}]
[]
["MÓDULO 3 – PROVISÃO PARA RESCISÃO"]
[3,"PROVISÃO PARA RESCISÃO","%","VALOR (R$)"]
["A","Aviso prévio indenizado\n(Premissa de que 5% dos funcionários serão demitidos em condições de receber aviso prévio indenizado: 5%/12)",{"$f":"5%/12","v":4.1666666666666666E-3},{"$f":"$D$31*C67","v":0}]
["B","Incidência do FGTS sobre o Aviso prévio indenizado\n(incidência de 8% do FGTS sobre o % do aviso prévio indenizado)",{"$f":"0.08*C67","v":3.3333333333333332E-4},{"$f":"$D$31*C68","v":0}]
["C","Multa do FGTS sobre o Aviso Prévio Indenizado\n(Base de Cálculo da Multa é a soma do módulo 1 com submódulo 2.1 sem incidência dos encargos do 2.2.)",1.6000000000000001E-3,{"$f":"($D$31+$D$37)*C69","v":0}]
["D","Aviso prévio  trabalhado\n(Premissa de que 100% dos funcionários serão demitidos ao final do contrato de 12 meses.) ",1.9400000000000001E-2,{"$f":"$D$31*C70","v":0}]
["E","Incidência do Submódulo 2.2 sobre o Aviso Prévio Trabalhado\n(incidência de 8% do FGTS sobre o % do aviso prévio trabalhado)",{"$f":"C48*C70","v":7.1392000000000009E-3},{"$f":"$D$31*C71","v":0}]
["F","Multa do FGTS sobre o Aviso Prévio Trabalhado\n(Base de Cálculo da Multa é a soma do módulo 1 com submódulo 2.1 sem incidência dos encargos do 2.2)",{"$f":"0.4*0.08","v":3.2000000000000001E-2},{"$f":"$D$31*C72","v":0}]
["TOTAL DO MÓDULO 3",null,{"$f":"TRUNC(SUM(C67:C72),4)","v":6.4600000000000005E-2},{"$f":"TRUNC(SUM(D67:D72),2)","v":0}]
[]
["MÓDULO 4 – CUSTO DE REPOSIÇÃO DO PROFISSIONAL AUSENTE"]
["Base de Cálculo do Custo do Substituto (BCCS) = Módulos 1 + 2 + Férias - (V. Transporte e V. Alimentação) + 3 ",null,null,"VALOR (R$)"]
["Módulo 1 - Remuneração",null,null,{"$f":"D18","v":0}]
["Módulo 2 - Encargos e Benefícios Anuais, Mensais e Diários",null,null,{"$f":"D63","v":0}]
["Acréscimo das Férias com incidência do 2.2 ",null,null,{"$f":"1/12*D31*(1+C48)","v":0}]
["Desconto do Auxílio-Refeição",null,null,{"$f":"-D52","v":0}]
["Módulo 3 - Provisão para Rescisão",null,null,{"$f":"D73","v":0}]
["TOTAL BCCS",null,null,{"$f":"TRUNC(SUM(D77:D81),2)","v":0}]
[]
["Submódulo 4.1 - Substituto nas Ausências Legais",null,"%","VALOR (R$)"]
["A","Férias ",8.3330000000000001E-2,{"$f":"$D$82*C85","v":0}]
["B","Faltas e Ausências Legais",4.15E-3,{"$f":"$D$82*C86","v":0}]
["C","Licença Paternidade",2.0000000000000001E-4,0]
["D","Acidente de Trabalho ",5.1000000000000004E-4,0]
["E","Auxílio Doença",1.1100000000000001E-3,0]
["F","Afastamento Maternidade",3.8999999999999999E-4,0]
["TOTAL MÓDULO 4",null,{"$f":"TRUNC(SUM(C85:C90),4)","v":8.9599999999999999E-2},{"$f":"TRUNC(SUM(D85:D90),2)","v":0}]
[]
["MÓDULO 5 – INSUMOS DIVERSOS"]
[5,"INSUMOS DIVERSOS",null,"VALOR (R$)"]
["A","Uniformes ",null,{"$f":"'INSUMOS - Módulo 5'!F14","v":0}]
[]
["TOTAL DO MÓDULO 5",null,null,{"$f":"TRUNC(SUM(D95:D96),2)","v":0}]
[]
["MÓDULO 6 – CUSTOS INDIRETOS, TRIBUTOS E LUCRO"]
[6,"CUSTOS INDIRETOS, TRIBUTOS E LUCRO","%","VALOR (R$)"]
["A","Custos Indiretos",0.05,{"$f":"TRUNC(C101*D118,2)","v":0}]
["B","Subtotal 1 (A + Total Custos Diretos)",null,{"$f":"D101+D118","v":0}]
["C","Lucro",0.1,{"$f":"TRUNC(C103*(D101+D118),2)","v":0}]
["D","Subtotal 2 (B+C)",null,{"$f":"D102+D103","v":0}]
["E","TRIBUTOS \nTributos (estimado com base no Lucro Presumido - a empresa deverá preencher de acordo com o regime tributário a que é submetida) - (E=(D/(1-Tributos%))x(Tributos%)",8.6499999999999994E-2,{"$f":"(D104/(1-C105))*C105","v":0}]
["E.1","COFINS",0.03]
["E.2","PIS ",6.4999999999999997E-3]
["E.3","ISS",0.05]
["TOTAL DO MÓDULO 6 (A+C+E)",null,null,{"$f":"D101+D103+D105","v":0}]
[]
["QUADRO RESUMO DO CUSTO POR EMPREGADO"]
["Módulo",null,null,"VALOR (R$)"]
["A",{"$f":"A22","v":"MÓDULO 1 - COMPOSIÇÃO DA REMUNERAÇÃO"},null,{"$f":"D31","v":0}]
["B",{"$f":"A33","v":"MÓDULO 2 – ENCARGOS E BENEFÍCIOS ANUAIS, MENSAIS E DIÁRIOS"},null,{"$f":"D63","v":0}]
["C",{"$f":"A65","v":"MÓDULO 3 – PROVISÃO PARA RESCISÃO"},null,{"$f":"D73","v":0}]
["D",{"$f":"A75","v":"MÓDULO 4 – CUSTO DE REPOSIÇÃO DO PROFISSIONAL AUSENTE"},null,{"$f":"D91","v":0}]
["E",{"$f":"A93","v":"MÓDULO 5 – INSUMOS DIVERSOS"},null,{"$f":"D97","v":0}]
["Subtotal (A + B + C + D + E) - Custos Diretos",null,null,{"$f":"TRUNC(SUM(D113:D117),2)","v":0}]
["F",{"$f":"A99","v":"MÓDULO 6 – CUSTOS INDIRETOS, TRIBUTOS E LUCRO"},null,{"$f":"D109","v":0}]
["Subtotal (A + B + C + D + E + F) - Custo Fixo",null,null,{"$f":"D119+D118","v":0}]
["G",{"$f":"'MOTORISTA - DIÁRIAS - Módulo 7'!A1","v":"MÓDULO 7 - DIÁRIAS (CUSTOS VARIÁVEIS)"},null,{"$f":"'MOTORISTA - DIÁRIAS - Módulo 7'!C31","v":0}]
["PREÇO MENSAL TOTAL POR EMPREGADO / POSTO DE TRABALHO (CUSTO FIXO + VARIÁVEL)",null,null,{"$f":"D120+D121","v":0}]

{"sheet":"MOTORISTA - DIÁRIAS - Módulo 7","index":6,"n_rows":38,"n_cols":3,"rows_kept":38,"cut":false,"hidden":false,"merged":[[0,0,0,2],[34,0,34,2],[35,0,35,2],[37,0,37,2],[5,0,5,2],[17,0,17,2],[2,0,2,2],[14,0,14,2],[26,0,26,2],[1,0,1,2],[33,0,33,2],[36,0,36,2]]}
["MÓDULO 7 - DIÁRIAS (CUSTOS VARIÁVEIS)"]
["Formação de Preços de Diárias (por posto)"]
["Valor da Diária - Interestadual"]
["Diária a ser paga ao motorista",null,{"$f":"C16*1.2","v":0}]
[]
["Tributos a serem retidos"]
["ISS",0.05,{"$f":"C11*B7","v":0}]
["TRIBUTOS FEDERAIS (IN RFB 1234/2012)",9.4500000000000001E-2,{"$f":"C11*B8","v":0}]
["INSS",0.11,{"$f":"C11*B9","v":0}]
["Total",{"$f":"SUM(B7:B9)","v":0.2545},{"$f":"SUM(C7:C9)","v":0}]
["Subtotal",null,{"$f":"(C4/0.7455)","v":0}]
["Custos indiretos",0.02,{"$f":"C11*B12","v":0}]
["Preço total de 1 (uma) diária em capital para 1 (um) posto",null,{"$f":"SUM(C11:C12)","v":0}]
[]
["Valor da Diária - Intermunicipal "]
["Diária a ser paga ao motorista"]
[]
["Tributos a serem retidos"]
["ISS",0.05,{"$f":"C23*B19","v":0}]
["TRIBUTOS FEDERAIS (IN RFB 1234/2012)",9.4500000000000001E-2,{"$f":"C23*B20","v":0}]
["INSS",0.11,{"$f":"C23*B21","v":0}]
["Total",{"$f":"SUM(B19:B21)","v":0.2545},{"$f":"SUM(C19:C21)","v":0}]
["Subtotal",null,{"$f":"(C16/0.7455)","v":0}]
["Custos indiretos",0.02,{"$f":"C23*B24","v":0}]
["Preço total de 1 (uma) diária nas demais localidades para 1 (um) posto",null,{"$f":"SUM(C23:C24)","v":0}]
[]
["TOTAL DIÁRIAS / MÊS"]
["Quantidade de diárias por mês para cada posto","Diárias","Valor"]
["Diárias/mês por posto - Interestadual",1,{"$f":"B29*C13","v":0}]
["Diárias/mês por posto - Intermunicipal",11,{"$f":"B30*C25","v":0}]
["Total",{"$f":"SUM(B29:B30)","v":12},{"$f":"C29+C30","v":0}]
[]
["* Cláusula 15ª da CCT."]
["* O modelo aqui apresentado serve de referência, e apresenta os percentuais máximos de retenção de tributos. A contratada deverá justificar os percentuais de retenção, conforme a legislação aplicável, caso sejam diferentes."]
["* Fórmula do preço total de uma diária (valor bruto): Diária a ser pago ao motorista * 0,7455"]
["* Tributos calculados através do coeficiente (1 - (5% + 9,45% + 11%)) = 0,7455"]
["* Percentual máximo admitido de custos indiretos (2%) - a contratada poderá reduzir, conforme sua realidade"]
["* Planilha a ser apresentada pela contratada, junto com a nota fiscal."]

{"sheet":"RECEPCIONISTA - Módulos 1 a 6","index":7,"n_rows":120,"n_cols":4,"rows_kept":120,"cut":false,"hidden":false,"merged":[[119,0,119,2],[101,1,101,2],[103,1,103,2],[108,0,108,2],[110,0,110,3],[111,0,111,1],[117,0,117,2],[98,0,98,3],[75,0,75,2],[76,0,76,1],[77,0,77,1],[78,0,78,1],[79,0,79,1],[80,0,80,1],[81,0,81,1],[83,0,83,1],[90,0,90,1],[92,0,92,3],[96,0,96,1],[74,0,74,3],[48,0,48,3],[49,0,49,1],[55,0,55,1],[56,0,56,3],[57,0,57,1],[58,0,58,1],[62,0,62,1],[63,0,63,3],[64,0,64,1],[72,0,72,1],[73,0,73,3],[47,0,47,1],[12,0,12,2],[14,0,14,3],[20,0,20,3],[21,0,21,3],[30,0,30,1],[31,0,31,3],[32,0,32,3],[33,0,33,1],[36,0,36,1],[37,0,37,3],[38,0,38,1],[11,0,11,2],[0,0,0,3],[1,0,1,3],[2,0,2,3],[3,0,3,3],[4,0,4,2],[5,0,5,2],[6,0,6,2],[7,0,7,2],[8,0,8,2],[9,0,9,2],[10,0,10,2]]}
["MÓDULOS 1 A 6 (CUSTOS FIXOS)"]
["Planilha de Custos e Formação de Preços "]
["Recepcionista"]
["Discriminação dos Serviços"]
["Data de apresentação da proposta",null,null,"Licitante Preencher"]
["Município",null,null,"Fortaleza - CE"]
["Ano do Acordo, Convenção ou Dissídio Coletivo",null,null,"CE000086/2025"]
["Tipo de Serviço",null,null,"Recepcionista  "]
["Unidade de Medida",null,null,"Posto"]
["Quantidade máxima passível de contratação em função da unidade de medida",null,null,{"$f":"'QUADRO RESUMO'!G11","v":2}]
["Nº de meses de execução contratual",null,null,12]
["Regime Tributário da Empresa",null,null,"Licitante Preencher"]
["Se Optante pelo Simples Nacional, preencher o faturamento acumulado dos últimos 12 meses ",null,null,"Licitante Preencher"]
[]
["Dados complementares para composição dos custos referente à mão-de-obra"]
[1,"Tipo de serviço",null,"Recepcionista  "]
[2,"Classificação Brasileira de Ocupações (CBO)",null,"4221-05"]
[3,"Salário Nominativo da Categoria Profissional"]
[4,"Categoria profissional (vinculada à execução contratual)",null,"RECEPCIONISTA"]
[5,"Data base da categoria (dia/mês/ano)",null,"2025-01-01"]
[]
["MÓDULO 1 - COMPOSIÇÃO DA REMUNERAÇÃO"]
[1,"COMPOSIÇÃO DA REMUNERAÇÃO","%","VALOR (R$)"]
["A","Salário Base (Cláusula 3ª)",null,{"$f":"D18","v":0}]
["B","Adicional Periculosidade ",0.3,0]
["C","Adicional Insalubridade","20%~40%",0]
["D","Adicional Noturno",0.2,0]
["E","Adicional de Hora Noturna Reduzida",null,0]
["F","Adicional de Hora Extra no Feriado Trabalhado",null,0]
["G","Outros (especificar)",null,0]
["TOTAL DO MÓDULO 1",null,null,{"$f":"TRUNC(SUM(D24:D30),2)","v":0}]
[]
["MÓDULO 2 – ENCARGOS E BENEFÍCIOS ANUAIS, MENSAIS E DIÁRIOS"]
["Submódulo 2.1 - 13º Salário, Férias e Adicional de Férias",null,"%","VALOR (R$)"]
["A","13 (Décimo-terceiro) salário \n(Valor referente a 1/12 x Remuneração.)",8.3299999999999999E-2,{"$f":"$D$31*C35","v":0}]
["B","Adicional de Férias\n(Valor referente a 1/3 x 1/12 x Remuneração)",2.7799999999999998E-2,{"$f":"C36*D31","v":0}]
["TOTAL SUBMÓDULO 2.1",null,{"$f":"TRUNC(SUM(C35:C36),4)","v":0.1111},{"$f":"TRUNC(SUM(D35:D36),2)","v":0}]
[]
["Submódulo 2.2 - GPS, FGTS e Outras Contribuições",null,"%","VALOR (R$)"]
["A","INSS\n(Art. 22, Inciso I, da Lei 8.212, de 24 de julho de 1991.​)",0.2,{"$f":"($D$31+$D$37)*C40","v":0}]
["B","Salário Educação\n(Art. 3º, Inciso I, Decreto 87.043, de 22 de março de 1982.​)",2.5000000000000001E-2,{"$f":"($D$31+$D$37)*C41","v":0}]
["C","SAT \n(Art. 22, II, Lei 8.212, de 1991. Resolução MPS/CNPS Nº 1.329, de 25/4/2017.). RAT: 4923-0/02. FAP neutro = 1. \nEmpresa deve preencher de acordo com o valor por ela suportado.",0.03,{"$f":"($D$31+$D$37)*C42","v":0}]
["D","SESC ou SESI\n(Art. 30, Lei 8.036, de 11 de maio de 1990.)",1.4999999999999999E-2,0]
["E","SENAI - SENAC\n(Art. 1º, caput, Decreto-Lei 6.246, de 1944 (SENAI) e art. 4º, caput do Decreto-Lei 8.621, de 1946. (SENAC).",0.01,0]
["F","SEBRAE\n(Art. 8º, Lei 8.029, de 12 de abril de 1990.)",6.0000000000000001E-3,0]
["G","INCRA\n(Art. 1°, I, 2 c/c art. 3°, ambos do Decreto-Lei 1.146, de 31 de dezembro de 1970.)",2E-3,0]
["H","FGTS",0.08,0]
["TOTAL SUBMÓDULO 2.2",null,{"$f":"SUM(C40:C47)","v":0.36800000000000005},{"$f":"TRUNC(SUM(D40:D47),2)","v":0}]
[]
["Submódulo 2.3 - Benefícios Mensais e Diários",null,null,"VALOR (R$)"]
["A","Auxílio Transporte \n(Clásula 16ª da CCT)",null,{"$f":"IF((C51*2*22)-(D24*6%)>0,(C51*2*22)-(D24*6%),0)","v":0}]
["B","Auxílio Refeição/Alimentação \n(Clásula 15ª da CCT)",null,{"$f":"C52*22","v":0}]
["C","Auxílio Creche\n(Clásula 19ª da CCT - provisão)",null,{"$f":"C53*0.04","v":0}]
["D","Cesta Básica \n(Clásula 14ª da CCT)",null,{"$f":"C54","v":0}]
["E","Plano de Saúde / Plano de Assistência e Cuidado Pessoal \n(Cláusula 17ª da CCT)",null,{"$f":"C55","v":0}]
["TOTAL SUBMÓDULO 2.3",null,null,{"$f":"TRUNC(SUM(D51:D55),2)","v":0}]
[]
["QUADRO-RESUMO DO MÓDULO 2 - ENCARGOS, BENEFÍCIOS ANUAIS, MENSAIS E DIÁRIOS"]
["Módulo 2 - Encargos, Benefícios Anuais, Mensais e Diários",null,null,"VALOR (R$)"]
["2.1","13º Salário, Férias e Adicional de Férias",null,{"$f":"D37","v":0}]
["2.2","GPS, FGTS e Outras Contribuições",null,{"$f":"D48","v":0}]
["2.3","Benefícios Mensais e Diários",null,{"$f":"D56","v":0}]
["TOTAL DO MÓDULO 2",null,null,{"$f":"TRUNC(SUM(D60:D62),2)","v":0}]
[]
["MÓDULO 3 – PROVISÃO PARA RESCISÃO"]
[3,"PROVISÃO PARA RESCISÃO","%","VALOR (R$)"]
["A","Aviso prévio indenizado\n(Premissa de que 5% dos funcionários serão demitidos em condições de receber aviso prévio indenizado: 5%/12)",{"$f":"5%/12","v":4.1666666666666666E-3},{"$f":"$D$31*C67","v":0}]
["B","Incidência do FGTS sobre o Aviso prévio indenizado\n(incidência de 8% do FGTS sobre o % do aviso prévio indenizado)",{"$f":"0.08*C67","v":3.3333333333333332E-4},{"$f":"$D$31*C68","v":0}]
["C","Multa do FGTS sobre o Aviso Prévio Indenizado\n(Base de Cálculo da Multa é a soma do módulo 1 com submódulo 2.1 sem incidência dos encargos do 2.2.)",1.6000000000000001E-3,{"$f":"($D$31+$D$37)*C69","v":0}]
["D","Aviso prévio  trabalhado\n(Premissa de que 100% dos funcionários serão demitidos ao final do contrato de 12 meses.) ",1.9400000000000001E-2,{"$f":"$D$31*C70","v":0}]
["E","Incidência do Submódulo 2.2 sobre o Aviso Prévio Trabalhado\n(incidência de 8% do FGTS sobre o % do aviso prévio trabalhado)",{"$f":"C48*C70","v":7.1392000000000009E-3},{"$f":"$D$31*C71","v":0}]
["F","Multa do FGTS sobre o Aviso Prévio Trabalhado\n(Base de Cálculo da Multa é a soma do módulo 1 com submódulo 2.1 sem incidência dos encargos do 2.2)",{"$f":"0.4*0.08","v":3.2000000000000001E-2},{"$f":"$D$31*C72","v":0}]
["TOTAL DO MÓDULO 3",null,null,{"$f":"TRUNC(SUM(D67:D72),2)","v":0}]
[]
["MÓDULO 4 – CUSTO DE REPOSIÇÃO DO PROFISSIONAL AUSENTE"]
["Base de Cálculo do Custo do Substituto (BCCS) = Módulos 1 + 2 + Férias - (V. Transporte e V. Alimentação) + 3 ",null,null,"VALOR (R$)"]
["Módulo 1 - Remuneração",null,null,{"$f":"D18","v":0}]
["Módulo 2 - Encargos e Benefícios Anuais, Mensais e Diários",null,null,{"$f":"D63","v":0}]
["Acréscimo das Férias com incidência do 2.2 ",null,null,{"$f":"1/12*D31*(1+C48)","v":0}]
["Desconto do Auxílio-Refeição",null,null,{"$f":"-D52","v":0}]
["Módulo 3 - Provisão para Rescisão",null,null,{"$f":"D73","v":0}]
["TOTAL BCCS",null,null,{"$f":"TRUNC(SUM(D77:D81),2)","v":0}]
[]
["Submódulo 4.1 - Substituto nas Ausências Legais",null,"%","VALOR (R$)"]
["A","Férias ",8.3330000000000001E-2,{"$f":"$D$82*C85","v":0}]
["B","Faltas e Ausências Legais",4.15E-3,{"$f":"$D$82*C86","v":0}]
["C","Licença Paternidade",2.0000000000000001E-4,0]
["D","Acidente de Trabalho ",5.1000000000000004E-4,0]
["E","Auxílio Doença",1.1100000000000001E-3,0]
["F","Afastamento Maternidade",3.8999999999999999E-4,0]
["TOTAL MÓDULO 4",null,{"$f":"TRUNC(SUM(C85:C90),4)","v":8.9599999999999999E-2},{"$f":"TRUNC(SUM(D85:D90),2)","v":0}]
[]
["MÓDULO 5 – INSUMOS DIVERSOS"]
[5,"INSUMOS DIVERSOS",null,"VALOR (R$)"]
["A","Uniforme",null,{"$f":"'INSUMOS - Módulo 5'!F27","v":0}]
[]
["TOTAL DO MÓDULO 5",null,null,{"$f":"TRUNC(SUM(D95:D96),2)","v":0}]
[]
["MÓDULO 6 – CUSTOS INDIRETOS, TRIBUTOS E LUCRO"]
[6,"CUSTOS INDIRETOS, TRIBUTOS E LUCRO","%","VALOR (R$)"]
["A","Custos Indiretos",0.05,{"$f":"TRUNC(C101*D118,2)","v":0}]
["B","Subtotal 1 (A + Total Custos Diretos)",null,{"$f":"D101+D118","v":0}]
["C","Lucro",0.1,{"$f":"TRUNC(C103*(D101+D118),2)","v":0}]
["D","Subtotal 2 (B+C)",null,{"$f":"D102+D103","v":0}]
["E","TRIBUTOS \nTributos (estimado com base no Lucro Presumido - a empresa deverá preencher de acordo com o regime tributário a que é submetida) - (E=(D/(1-Tributos%))x(Tributos%)",8.6499999999999994E-2,{"$f":"(D104/(1-C105))*C105","v":0}]
["E.1","COFINS",0.03]
["E.2","PIS ",6.4999999999999997E-3]
["E.3","ISS",0.05]
["TOTAL DO MÓDULO 6 (A+C+E)",null,null,{"$f":"D101+D103+D105","v":0}]
[]
["QUADRO RESUMO DO CUSTO POR EMPREGADO"]
["Módulo",null,null,"VALOR (R$)"]
["A",{"$f":"A22","v":"MÓDULO 1 - COMPOSIÇÃO DA REMUNERAÇÃO"},null,{"$f":"D31","v":0}]
["B",{"$f":"A33","v":"MÓDULO 2 – ENCARGOS E BENEFÍCIOS ANUAIS, MENSAIS E DIÁRIOS"},null,{"$f":"D63","v":0}]
["C",{"$f":"A65","v":"MÓDULO 3 – PROVISÃO PARA RESCISÃO"},null,{"$f":"D73","v":0}]
["D",{"$f":"A75","v":"MÓDULO 4 – CUSTO DE REPOSIÇÃO DO PROFISSIONAL AUSENTE"},null,{"$f":"D91","v":0}]
["E",{"$f":"A93","v":"MÓDULO 5 – INSUMOS DIVERSOS"},null,{"$f":"D97","v":0}]
["Subtotal (A + B + C + D + E) - Custos Diretos",null,null,{"$f":"TRUNC(SUM(D113:D117),2)","v":0}]
["F",{"$f":"A99","v":"MÓDULO 6 – CUSTOS INDIRETOS, TRIBUTOS E LUCRO"},null,{"$f":"D109","v":0}]
["PREÇO TOTAL POR EMPREGADO / MÊS (CUSTO FIXO)",null,null,{"$f":"D119+D118","v":0}]

{"sheet":"INSUMOS - Módulo 5","index":8,"n_rows":88,"n_cols":6,"rows_kept":88,"cut":false,"hidden":false,"merged":[[16,0,16,5],[26,0,26,3],[28,0,28,5],[0,0,0,5],[13,0,13,3],[1,0,1,5],[4,0,4,5],[15,0,15,5],[3,0,3,5],[29,0,29,5],[39,0,39,3],[40,0,40,5],[54,0,54,3],[56,0,56,5],[87,0,89,5],[81,0,83,5],[84,0,86,5],[57,0,57,5],[64,0,64,3],[65,0,65,5],[75,0,75,3],[77,0,77,5],[78,0,80,5]]}
["MÓDULO 5 – INSUMOS DIVERSOS"]
["Formação de Preços de Insumos (por posto)"]
[]
["Motorista"]
["Uniforme"]
["Descrição","Unidade","Quantidade","Valor Unitário ","Valor Anual","Valor Mensal"]
["Calça jeans tradicional","Unidade",10,null,{"$f":"D7*C7","v":0},{"$f":"E7/12","v":0}]
["Camisa social branca\n(As camisas devem ter a mesma padronização, com o logo da empresa na altura do peito, do lado esquerdo. Nas costas, deve constar a inscrição: \"A serviço da Codevasf\".)","Unidade",5,null,{"$f":"D8*C8","v":0},{"$f":"E8/12","v":0}]
["Camisa gola polo banca\n(As camisas devem ter a mesma padronização, com o logo da empresa na altura do peito, do lado esquerdo. Nas costas, deve constar a inscrição: \"A serviço da Codevasf\".)","Unidade",5,null,0,0]
["Par de meia social preta","Par",10,null,0,0]
["Sapato / bota preta ","Par",2,null,0,0]
["Cinto social preto","Unidade",1,null,0,0]
["Crachá","Unidade",1,null,0,0]
["Total",null,null,null,{"$f":"SUM(E7:E13)","v":0},{"$f":"SUM(F7:F13)","v":0}]
[]
["Recepcionista"]
["Uniforme"]
["Descrição","Unidade","Quantidade","Valor Unitário ","Valor Anual","Valor Mensal"]
["Blazer social casual feminino com gola, 2 bolsos embutidos na linha de cintura, cor azul marinho ou preta","Unidade",10,null,{"$f":"D19*C19","v":0},{"$f":"E19/12","v":0}]
["Blusa básica social feminina, mangas longas punhos livres, sem bolso, tecido Oxford Camisaria cor branca ou azul royal. ","Unidade",10,null,{"$f":"D20*C20","v":0},{"$f":"E20/12","v":0}]
["Calça social feminina, corte reto, na cor azul marinho ou preta","Unidade",10,null,0,0]
["Par de meias, na cor preta","Par",10,null,0,0]
["Laço para cabelo com tela","Unidade",4,null,0,0]
["Lenço para pescoço","Unidade",2,null,0,0]
["Sapato social","Par",2,null,0,0]
["Crachá","Unidade",1,null,0,0]
["Total",null,null,null,{"$f":"SUM(E19:E26)","v":0},{"$f":"SUM(F19:F26)","v":0}]
[]
["Copeira "]
["Uniforme"]
["Descrição","Unidade","Quantidade","Valor Unitário ","Valor Anual","Valor Mensal"]
["Colete para uniforme, na cor azul marinho ou preta, fechamento em botões, sem manga, com a logomarca da empresa localizada no lado esquerdo do peito na parte da frente, e a inscrição \"A SERVIÇO DA CODEVASF 14ª/SR\" centralizada nas costas","Unidade",10,null,{"$f":"D32*C32","v":0},{"$f":"E32/12","v":0}]
["Blusa básica feminina, malha fria, cor branca","Unidade",10,null,0,{"$f":"E33/12","v":0}]
["Avental de cintura na cor branco","Unidade",2,null,0,0]
["Calça social feminina, corte reto","Unidade",10,null,0,0]
["Par de meias, na cor preta","Par",10,null,0,0]
["Laço para cabelo com tela","Unidade",4,null,0,0]
["Sapato social","Par",2,null,0,0]
["Crachá","Unidade",1,null,0,0]
["Total",null,null,null,{"$f":"SUM(E32:E39)","v":0},{"$f":"SUM(F32:F39)","v":0}]
["Insumos"]
["Descrição","Unidade","Quantidade","Valor Unitário ","Valor Anual","Valor Mensal"]
["CAFÉ, apresentação: torrado moído, intensidade: intensa ou extra forte, tipo: tradicional, empacotamento: vácuo. Marca: 3 Corações ou similar ","500 g",{"$f":"15*12","v":180},null,{"$f":"D43*C43","v":0},{"$f":"E43/12","v":0}]
["AÇÚCAR, tipo: refinado, coloração: branca","1 Kg",{"$f":" 1*12","v":12},null,0,{"$f":"E44/12","v":0}]
["Adoçante Dietético Líquido Características Técnicas: -Adoçante à base de aspartame; - Líquido com conteúdo mínimo de 100 ml; -Frasco plástico com bico tipo conta gotas ","Unidade",{"$f":"1*12","v":12},null,0,0]
["Detergente para lavar louça – 500 ml, 100% biodegradável com Registro ANVISA - Limpol/Ipê ou similar","Unidade",{"$f":"3*12","v":36},null,0,0]
["Esponja dupla face verde/amarelo – 3M, Scoth brite ou similar ","unidade",{"$f":"6*12","v":72},null,0,0]
["Lã/ esponja de aço – Bombril ou similar ","Unidade",{"$f":"1*12","v":12},null,0,0]
["Papel Toalha","Pct 2 Rolos",{"$f":"2*12","v":24},null,0,0]
["Guardanapo ","Unidade",{"$f":"2*12","v":24},null,0,0]
["Rodo para pia","Unidade",{"$f":"1*12","v":12},null,0,0]
["Sabão em barra de 1° qualidade – pacote com barras de 200 g, totalizando 1 Kg. 100% biodegradável com Registro ANVISA","Unidade",{"$f":"1*12","v":12},null,0,0]
["Copo descartável de 150 ml ","Pct 100 unidades",{"$f":"6*12","v":72},null,0,0]
["Copo descartável de 50 ml ","Pct 100 unidades",{"$f":"3*12","v":36},null,0,{"$f":"E54/12","v":0}]
["Total",null,null,null,{"$f":"SUM(E43:E54)","v":0},{"$f":"SUM(F43:F54)","v":0}]
[]
["Auxiliar de serviços gerais  "]
["Uniforme"]
["Descrição","Unidade","Quantidade","Valor Unitário ","Valor Anual","Valor Mensal"]
["Camiseta para uniforme, na cor azul marinho, manga curta, com a logomarca da empresa localizada no lado esquerdo do peito na parte da frente, e a inscrição \"A SERVIÇO DA CODEVASF 14ª/SR\" centralizada nas costas","Unidade",10,null,{"$f":"D60*C60","v":0},{"$f":"E60/12","v":0}]
["Calça comprida, na cor azul marinho ou preta, com elástico e cordão, em tecido brim","Unidade",10,null,{"$f":"D61*C61","v":0},{"$f":"E61/12","v":0}]
["Par de meias, na cor preta","Unidade",10,null,{"$f":"D62*C62","v":0},0]
["Sapato antiderrapante profissional para trabalho, na cor preta","Unidade",2,null,{"$f":"D63*C63","v":0},0]
["Crachá","Unidade",1,null,{"$f":"D64*C64","v":0},0]
["Total",null,null,null,{"$f":"SUM(E60:E64)","v":0},{"$f":"SUM(F60:F64)","v":0}]
["Insumos"]
["Descrição","Unidade","Quantidade","Valor Unitário ","Valor Anual","Valor Mensal"]
["Água sanitária de 1ª qualidade com registro ANVISA","unidade",{"$f":"1*12","v":12},null,{"$f":"D68*C68","v":0},{"$f":"E68/12","v":0}]
["Álcool de 1ª qualidade, 70º INPM. Frasco de 1 litro, com registro ANVISA ","Litro",{"$f":"2*12","v":24},null,0,{"$f":"E69/12","v":0}]
["Limpador líquido multiuso concentrado – Veja ou similar","Unidade",{"$f":"2*12","v":24},null,0,0]
["Luva de látex natural de 1° qualidade ","Par",{"$f":"1*12","v":12},null,0,0]
["Pano multiuso","Rolo",{"$f":"1*12","v":12},null,0,0]
["Saco de lixo 100 L ","Unidade",{"$f":"1*12","v":12},null,0,0]
["Sabão em pó 100% biodegradável com Registro ANVISA","Kg",{"$f":"1*12","v":12},null,0,0]
["Vassoura de pelo 40 cm c/ cabo de madeira, Noviça/Bettanin, Condor ou similar. ","Unidade",{"$f":"1*12","v":12},null,0,0]
["Total",null,null,null,{"$f":"SUM(E68:E75)","v":0},{"$f":"SUM(F68:F75)","v":0}]
[]
["Observações"]
["* Conforme o art. 30, inciso V, § 2º, do Regulamento Interno de Licitações e Contratos (Deliberação nº 08, de 26/02/2024), e o item 4.2.6.6 da Norma de Pesquisa e Definição dos Preços de Referência para Licitações de Bens e Serviços (Resolução nº 661, de 04 de junho de 2025), utilizou-se como parâmetro a pesquisa de preços realizada no Compras.gov.br, considerando a mediana dos valores obtidos."]
[]
[]
["* O quantitativo dos insumos foi rateado para a estipulação do custo mensal, mas o fornecimento, ao longo da execução do contrato, pode sofrer ajustes, para mais ou para menos, conforme a necessidade do serviço, sempre respeitando os quantitativos totais estimados."]
[]
[]
["* Quanto aos uniformes, a quantidade estipulada refere-se ao quantitativo anual. A entrega dos itens deve ser realizada em duas etapas: a primeira no início do contrato e a segunda no segundo semestre de vigência."]
[]
[]
["* Data base da pesquisa: 20/10/2025. "]